Workbook

Sheet SolCotizacion
B1: Solicitud de Cotización Software de Fabricantes
B3: Versión: 30 | C3: 2022-09-30
B4: Información de la Entidad Compradora
B6: Nombre de la Entidad | E6: Secretaria General de la Alcaldia Mayor de Bogotá D.C. | K6: NIT | M6: 899999061
B8: Dirección de la Entidad | E8: Carrera 8 N. 10 - 65 | K8: Correo de contacto | M8: rlondono@alcaldiabogota.gov.co
B10: Municipio | E10: Bogotá D.C. | K10: Teléfono de contacto | M10: 3813000 EXT 1161
B12: Nombre funcionario Comprador | E12: Rafael Londoño Carantón
B16: Solicitud de Cotización
B18: Categoría | E18: Software Analitica S.A.S | I18: Valor TRM | J18: 4636.83 | M18: Fecha de lanzamiento del evento de cotización | N18: 2022-10-24
I19: Escribir hasta dos cifras decimales. Tenga en cuenta que el simulador aproxima al entero más cercano.
B20: Productos
A22: *Libros, revistas, cartillas y/o catálogo Segmento 1. | B22: =E18 -> Software Analitica S.A.S
B24: Cantidad de filas:
B25: 1
B27: Item | C27: Código Catálogo | E27: Descripción del Producto | I27: Tipo | J27: Unidad | K27: Zona | L27: Asistencia | M27: Perfil | N27: Número de parte | O27: Forma de Pago | P27: cantidad
A28: =E28&L28 -> SGP Licencia por usuario: BPMS Ilimitados Procedimientos (Incluye soporte por el primer año) - Mínimo 20 usuariosRemoto | B28: 1 | C28: SGP-SW-1 | E28: =IFERROR(VLOOKUP($C28&$E$18,Consolidado!$B:$U,9,0),VLOOKUP($C28&"Canal",Consolidado!$B:$U,9,0)) -> SGP Licencia por usuario: BPMS Ilimitados Procedimientos (Incluye soporte por el primer año) - Mínimo 20 usuarios | I28: =IFERROR(VLOOKUP($C28&$E$18,Consolidado!$B:$U,12,0),VLOOKUP($C28&"Canal",Consolidado!$B:$U,12,0)) -> Servicio | J28: =IFERROR(VLOOKUP($C28&$E$18,Consolidado!$B:$U,10,0),VLOOKUP($C28&"Canal",Consolidado!$B:$U,10,0)) -> Usuario | K28: =IFERROR(VLOOKUP($C28&$E$18,Consolidado!$B:$U,13,0),VLOOKUP($C28&"Canal",Consolidado!$B:$U,13,0)) -> Zonas (1,2,3) | L28: =IFERROR(VLOOKUP($C28&$E$18,Consolidado!$B:$U,14,0),VLOOKUP($C28&"Canal",Consolidado!$B:$U,14,0)) -> Remoto | M28: =IFERROR(VLOOKUP($C28&$E$18,Consolidado!$B:$U,15,0),VLOOKUP($C28&"Canal",Consolidado!$B:$U,15,0)) -> N/A | N28: =IFERROR(VLOOKUP($C28&$E$18,Consolidado!$B:$U,16,0),VLOOKUP($C28&"Canal",Consolidado!$B:$U,16,0)) -> SGP-SW-1 | O28: =IFERROR(VLOOKUP($C28&$E$18,Consolidado!$B:$U,17,0),VLOOKUP($C28&"Canal",Consolidado!$B:$U,17,0)) -> Único Pago | P28: 20 | Q28: =IFERROR(VLOOKUP($C28&$E$18,Consolidado!$B:$U,5,0),VLOOKUP($C28&"Canal",Consolidado!$B:$U,5,0)) -> Software Analitica S.A.S
A29: =E29&L29 -> SGP Soporte anual por usuario: BPMS (Año Adicional)Remoto | B29: 2 | C29: SGP-SW-2 | E29: =IFERROR(VLOOKUP($C29&$E$18,Consolidado!$B:$U,9,0),VLOOKUP($C29&"Canal",Consolidado!$B:$U,9,0)) -> SGP Soporte anual por usuario: BPMS (Año Adicional) | I29: =IFERROR(VLOOKUP($C29&$E$18,Consolidado!$B:$U,12,0),VLOOKUP($C29&"Canal",Consolidado!$B:$U,12,0)) -> Servicio | J29: =IFERROR(VLOOKUP($C29&$E$18,Consolidado!$B:$U,10,0),VLOOKUP($C29&"Canal",Consolidado!$B:$U,10,0)) -> Usuario | K29: =IFERROR(VLOOKUP($C29&$E$18,Consolidado!$B:$U,13,0),VLOOKUP($C29&"Canal",Consolidado!$B:$U,13,0)) -> Zonas (1,2,3) | L29: =IFERROR(VLOOKUP($C29&$E$18,Consolidado!$B:$U,14,0),VLOOKUP($C29&"Canal",Consolidado!$B:$U,14,0)) -> Remoto | M29: =IFERROR(VLOOKUP($C29&$E$18,Consolidado!$B:$U,15,0),VLOOKUP($C29&"Canal",Consolidado!$B:$U,15,0)) -> N/A | N29: =IFERROR(VLOOKUP($C29&$E$18,Consolidado!$B:$U,16,0),VLOOKUP($C29&"Canal",Consolidado!$B:$U,16,0)) -> SGP-SW-2 | O29: =IFERROR(VLOOKUP($C29&$E$18,Consolidado!$B:$U,17,0),VLOOKUP($C29&"Canal",Consolidado!$B:$U,17,0)) -> Anual | P29: 20 | Q29: =IFERROR(VLOOKUP($C29&$E$18,Consolidado!$B:$U,5,0),VLOOKUP($C29&"Canal",Consolidado!$B:$U,5,0)) -> Software Analitica S.A.S
A30: =E30&L30 -> Capacitación para usuario técnico o administrador - hasta 10 Personas SGP (BPMS) Remoto | B30: 3 | C30: SGP-SRV-13 | E30: =IFERROR(VLOOKUP($C30&$E$18,Consolidado!$B:$U,9,0),VLOOKUP($C30&"Canal",Consolidado!$B:$U,9,0)) -> Capacitación para usuario técnico o administrador - hasta 10 Personas SGP (BPMS) | I30: =IFERROR(VLOOKUP($C30&$E$18,Consolidado!$B:$U,12,0),VLOOKUP($C30&"Canal",Consolidado!$B:$U,12,0)) -> Servicio | J30: =IFERROR(VLOOKUP($C30&$E$18,Consolidado!$B:$U,10,0),VLOOKUP($C30&"Canal",Consolidado!$B:$U,10,0)) -> Por sesión de capacitación de 4 horas para un grupo de hasta 10 personas. | K30: =IFERROR(VLOOKUP($C30&$E$18,Consolidado!$B:$U,13,0),VLOOKUP($C30&"Canal",Consolidado!$B:$U,13,0)) -> Zona 1 | L30: =IFERROR(VLOOKUP($C30&$E$18,Consolidado!$B:$U,14,0),VLOOKUP($C30&"Canal",Consolidado!$B:$U,14,0)) -> Remoto | M30: =IFERROR(VLOOKUP($C30&$E$18,Consolidado!$B:$U,15,0),VLOOKUP($C30&"Canal",Consolidado!$B:$U,15,0)) -> Capacitador | N30: =IFERROR(VLOOKUP($C30&$E$18,Consolidado!$B:$U,16,0),VLOOKUP($C30&"Canal",Consolidado!$B:$U,16,0)) -> SGP-SRV-13 | O30: =IFERROR(VLOOKUP($C30&$E$18,Consolidado!$B:$U,17,0),VLOOKUP($C30&"Canal",Consolidado!$B:$U,17,0)) -> Mensual por servicios efectivamente prestados | P30: 10 | Q30: =IFERROR(VLOOKUP($C30&$E$18,Consolidado!$B:$U,5,0),VLOOKUP($C30&"Canal",Consolidado!$B:$U,5,0)) -> Software Analitica S.A.S
A31: =E31&L31 -> Configuración y parametrización de los Productos - SGP (BPMS) Remoto | B31: 4 | C31: SGP-SRV-25 | E31: =IFERROR(VLOOKUP($C31&$E$18,Consolidado!$B:$U,9,0),VLOOKUP($C31&"Canal",Consolidado!$B:$U,9,0)) -> Configuración y parametrización de los Productos - SGP (BPMS) | I31: =IFERROR(VLOOKUP($C31&$E$18,Consolidado!$B:$U,12,0),VLOOKUP($C31&"Canal",Consolidado!$B:$U,12,0)) -> Servicio | J31: =IFERROR(VLOOKUP($C31&$E$18,Consolidado!$B:$U,10,0),VLOOKUP($C31&"Canal",Consolidado!$B:$U,10,0)) -> Hora | K31: =IFERROR(VLOOKUP($C31&$E$18,Consolidado!$B:$U,13,0),VLOOKUP($C31&"Canal",Consolidado!$B:$U,13,0)) -> Zona 1 | L31: =IFERROR(VLOOKUP($C31&$E$18,Consolidado!$B:$U,14,0),VLOOKUP($C31&"Canal",Consolidado!$B:$U,14,0)) -> Remoto | M31: =IFERROR(VLOOKUP($C31&$E$18,Consolidado!$B:$U,15,0),VLOOKUP($C31&"Canal",Consolidado!$B:$U,15,0)) -> Profesional | N31: =IFERROR(VLOOKUP($C31&$E$18,Consolidado!$B:$U,16,0),VLOOKUP($C31&"Canal",Consolidado!$B:$U,16,0)) -> SGP-SRV-25 | O31: =IFERROR(VLOOKUP($C31&$E$18,Consolidado!$B:$U,17,0),VLOOKUP($C31&"Canal",Consolidado!$B:$U,17,0)) -> Mensual por servicios efectivamente prestados | P31: 1000 | Q31: =IFERROR(VLOOKUP($C31&$E$18,Consolidado!$B:$U,5,0),VLOOKUP($C31&"Canal",Consolidado!$B:$U,5,0)) -> Software Analitica S.A.S
A32: =E32&L32 -> Instalación de Licencia o Suscripción Anual, o afínes - SGP (BPMS)Remoto | B32: 5 | C32: SGP-SRV-31 | E32: =IFERROR(VLOOKUP($C32&$E$18,Consolidado!$B:$U,9,0),VLOOKUP($C32&"Canal",Consolidado!$B:$U,9,0)) -> Instalación de Licencia o Suscripción Anual, o afínes - SGP (BPMS) | I32: =IFERROR(VLOOKUP($C32&$E$18,Consolidado!$B:$U,12,0),VLOOKUP($C32&"Canal",Consolidado!$B:$U,12,0)) -> Servicio | J32: =IFERROR(VLOOKUP($C32&$E$18,Consolidado!$B:$U,10,0),VLOOKUP($C32&"Canal",Consolidado!$B:$U,10,0)) -> Unidad | K32: =IFERROR(VLOOKUP($C32&$E$18,Consolidado!$B:$U,13,0),VLOOKUP($C32&"Canal",Consolidado!$B:$U,13,0)) -> Zona 1 | L32: =IFERROR(VLOOKUP($C32&$E$18,Consolidado!$B:$U,14,0),VLOOKUP($C32&"Canal",Consolidado!$B:$U,14,0)) -> Remoto | M32: =IFERROR(VLOOKUP($C32&$E$18,Consolidado!$B:$U,15,0),VLOOKUP($C32&"Canal",Consolidado!$B:$U,15,0)) -> Técnico/Tecnólogo ó Profesional | N32: =IFERROR(VLOOKUP($C32&$E$18,Consolidado!$B:$U,16,0),VLOOKUP($C32&"Canal",Consolidado!$B:$U,16,0)) -> SGP-SRV-31 | O32: =IFERROR(VLOOKUP($C32&$E$18,Consolidado!$B:$U,17,0),VLOOKUP($C32&"Canal",Consolidado!$B:$U,17,0)) -> Mensual por servicios efectivamente prestados | P32: 1 | Q32: =IFERROR(VLOOKUP($C32&$E$18,Consolidado!$B:$U,5,0),VLOOKUP($C32&"Canal",Consolidado!$B:$U,5,0)) -> Software Analitica S.A.S
B33: 1. Si requiere agregue o elimine fila
B36: Gravámenes adicionales*
B37: Si los hay, indique los gravámenes adicionales a los que está sujeta la Orden de Compra. Son gravámenes adicionales por ejemplo; estampillas y demás impuestos territoriales. Los impuestos como ICA y retención en la fuente NO son gravámenes adicionales.
B38: Gravámenes adicionales (estampillas)
B39: No | C39: Descripción | H39: Porcentaje
B40: 1 | C40: PROADULTO MAYOR | H40: 0.02
B41: 2 | C41: PROCULTURA | H41: 0.005
B42: 3 | C42: UNIVERSIDAD DISTRITAL FRANCISCO JOSE DE CALDAS | H42: 0.011
F43: Total porcentaje: | H43: =SUM(H40:H42) -> 0.036
D44: Filas a agregar o eliminar Gravámenes:
D45: 1

Sheet Anexo
B1: Con el objetivo de complementar el entendimiento sobre la solicitud de Productos y Servicios de Software de Fabricante, por favor diligencie la totalidad de la información que se pide a continuación.
B3: Tenga en cuenta que esta información es de utilidad para que el Proveedor pueda cotizar de la manera más precisa posible los Productos y Servicios de Software de Fabricante solicitados, por lo cual la exactitud y completitud es muy importante.
A4: No | B4: Requerimiento adicional | C4: Descripción | D4: INFORMACION SUMINISTRADA POR LA ENTIDAD COMPRADORA
B5: Nombre y Nit de la Entidad Estatal a la cual se le entregará la titularidad de las licencias adquiridas. | C5: SI | D5: Ministerio de Ciencia Tecnologia e Innovación - Minciencias 899999296-2
A6: 1 | B6: Lugar de entrega de los Productos y Servicios de Software de Fabricante (Especificar dirección y ciudad de entrega). | C6: SI | D6: Avenida Calle 26 No, 57 - 83 Torre 8 - Pisos del 2 al 6 Bogotá, Colombia
A7: 2 | B7: Datos Contacto de entrega (Especificar nombre, teléfono y correo electrónico). | C7: SI | D7: Erick de Jesus Guerra Aleman, 304 5446774, eguerra@minciencias,gov,co Gabriel Mauricio Vera Guevara, 310 3148548, gmvera@minciencias,gov,co
A8: 3 | B8: Funciones a realizar el soporte en sitio. | C8: SI | D8: Disponibilidad: La disponibilidad de soporte y mantenimiento para los productos debe ser de lunes a viernes de 8:00 AM a 12:00 M y de 1:00 PM a 5:00 PM, En caso de requerirse en días y horarios no laborales, el contratista deberá dar el servicio solicitado, Niveles de atención y tiempos de respuesta: El proveedor debe contar con un servicio que permita la atención y recepción de los requerimientos solicitados por MINCIENCIAS, Para ello debe indicar el numero telefónico de atención en Bogotá, Ante un requerimiento de soporte por parte de MINCIENCIAS, el proveedor se obliga a atender y diagnosticar este requerimiento en un tiempo de respuesta no superior a 4 horas y solucionario (dejar en estado operativo normal la herramienta de desarrollo, el SGDEA, sus herramientas, el sistema operativo y el motor de base de datos) dentro de las 4 horas siguientes a la solicitud, El proveedor deberá prestar el servicio de soporte telefónico o a través de la Web o por correo electrónico en la administración, configuración, resolución de problemas de software para la herramienta de desarrollo, el SGDEA, sus herramientas, el sistema operativo y el motor de base de datos, de manera ilimitada durante el tiempo de garantía de todo el sistema, Todo soporte técnico que requiera apagado del equipo donde se encuentre instalada la solución implementada deberá ser coordinado previamente con persona designada por MINCIENCIAS, con el fin de no generar traumatismos en la normal prestación de los servicios de MINCIENCIAS, Los costos en que incurra el proveedor para atender cualquier solicitud de soporte, mantenimiento correctivo o preventivo, ya sea mano de obra, traslados, e insumos necesarios para garantizar el correcto funcionamiento de la herramienta de desarrollo y la solución implementada, durante la ejecución y el periodo de soporte y garantía de estos software, correrán por cuenta del proveedor, por lo tanto, no tendrá costo adicional para MINCIENCIAS, Durante la ejecución del contrato y su periodo de garantía, el proveedor debe estar presente en los despliegues en producción, apoyar técnicamente a MINCIENCIAS en el despliegue, verificar que el despliegue sea satisfactorio, y si en pruebas funciona y no en producción dar las recomendaciones técnicas y realizar ios ajustes a que haya lugar para que en producción el despliegue funcione, Durante la ejecución del contrato y su periodo de garantía, los despliegues a producción deben realizarse a solicitud de la persona designada por MINCIENCIAS en fecha y hora acordada con el administrador del servidor, los cuales deben realizarse antes de 8 am y luego de 5:00 pm en días laborales; y en los días no laborales en hora fijada por la persona designada por MINCIENCIAS y el administrador del servidor, Durante la ejecución del contrato y su periodo de garantía, ante el evento de cualquier caída del servicio de! sistema y/o de su base de datos el proveedor debe hacerse presente en MINCIENCIAS a más tardar dentro de la hora siguiente en que se presento el evento, para dar apoyo a MINCIENCIAS en el restablecimiento del servicio, realizando el respectivo informe, En caso que la persona designada por MINCIENCIAS estime que no es necesaria la presencia del proveedor, el proveedor debe estar disponible vía telefónica o por celular para dar el soporte a MINCIENCIAS en el momento en que se le solicite, teniendo en cuenta que es un servicio web que debe estar disponible las 24 horas, Para lo cual el proveedor a la firma del contrato deberá indicar el nombre de los ingenieros para este soporte, y sus datos de contacto, incluyendo su email, en caso que también se requiera que indique por email algún tipo de soporte,
A9: 4 | B9: Área de conocimiento de las personas que prestan el servicio de soporte técnico proactivo. | C9: SI | D9: Ingenieros de sistemas o electrónicos
A10: 5 | B10: Área de conocimiento de las personas que prestan el servicio de soporte técnico reactivo. | C10: SI | D10: Ingenieros de sistemas o electrónicos
A11: 6 | B11: Mecanismo de solicitud del soporte reactivo. | C11: SI | D11: Herramienta web y línea de soporte telefónica y cuenta de correo
A12: 7 | B12: Especificar que información o que bases de datos se van a migrar. Aplica en el caso que la Entidad Compradora solicite el servicio de migración de información o de bases de datos. | C12: SI | D12: Migración de imágenes y datos del sistema ORFEO
A13: 8 | B13: Actividades del gerente de cuenta. | C13: N/A | D13: N/A
A14: 9 | B14: Indique número de personas que requieren de capacitación. En caso que la Entidad Compradora solicite el servicio de capacitación usuario final o usuario técnico. | C14: SI | D14: El proveedor deberá dictar los siguientes cursos: - Capacitación funcional sobre el SGDEA para que los funcionarios de MINCIENCIAS puedan manejar el sistema, en ciento veinte (120) sesiones cada una con una intensidad de cuatro (4) horas en grupos de máximo veinte (20) funcionarios - Capacitación técnica sobre el SGDEA, en diez (10) sesiones cada una con una intensidad de cuatro (4) horas en grupos de máximo diez (10) funcionarios - Capacitación funcional sobre el BPM para los funcionarios de MINCIENCIAS puedan manejar el sistema, en ocho (8) sesiones cada una con una intensidad de cuatro (4) horas en grupos de máximo veinte (20) funcionarios - Capacitación técnica sobre el BPM en dos (2) sesiones cada una con una intensidad de cuatro (4) horas en grupos de máximo diez (10) funcionarios Para todos los cursos de capacitación, se deberán entregar los respectivos certificados de asistencia, material de estudio. Las capacitaciones deben ser realizadas por uno o varios instructores certificados en las herramientas adquiridas, El proveedor debe entregar a la persona designada por MINCIENCIAS la documentación que registre el desarrollo de la capacitación, en la que se incluyan la agenda, los temas, los asistentes y las presentaciones de los temas en medio magnético. Si durante la prestación del servicio, se presenta una situación que amerite el cambio de las personas del equipo de trabajo, sustentada por alguna de las partes, el contratista se obliga a cambiar el personal, cumpliendo con los perfiles mínimos en el equipo mínimo de trabajo exigido por MINCIENCIAS El horario de instrucción será acordado para su realización en jornada diurna de 8:00 AM a 12:00 M y 2:00 PM a 5:00 PM en las instalaciones de MINCIENCIAS.
A15: 10 | B15: Especificar características de configuración y descripción de las tareas a realizar. En caso que la Entidad Compradora solicite el servicio de configuración y parametrización. | C15: SI | D15: El proveedor deberá realizar la instalación del SGDEA, PQRS y BPMS de sus herramientas, del sistema operativo, del motor de base de datos. Si durante el período de instalación de los mismos se presentan defectos de software, el contratista deberá proceder a cambiar el bien o los bienes defectuosos. El proveedor deberá realizar el análisis y diseño para la implementación del SGDEA personalizado para MINCIENCIAS, partiendo de las mejores practicas del modelo DEBE SER, ajustado a las necesidades de MINCIENCIAS y a la normatividad vigente en el tema de gestión documental, teniendo en cuenta: - Situación actual - Integración con Sistemas de MINCIENCIAS y externos - Ayuda en Línea - Reconocimiento óptico de caracteres - Diagnostico documental - Inventarios documentales - Tablas de Retención Documental - Tablas de Valoración Documental - Depuración documental - Casos de uso para cada procedimiento que se establezca - Documentación del análisis y desafío de sistema de información de gestión documental. El proveedor debe definir, documentar y ejecutar un plan de pruebas para corroborar las bondades del diseño propuesto, el cual deberá ser aprobado por MINCIENCIAS para iniciar la implementación. El proveedor debe implementar el diseño y la configuración aprobados por persona designada por MINCIENCIAS, ejecutando las políticas de seguridad necesarias que garanticen el correcto del SGDEA, PQRS y BPMS. El proveedor debe documentar plenamente el proceso de análisis, diseño, Implementación, pruebas, configuración, instalación y puesta en producción
A16: 12 | B16: Establecer las políticas de respaldo de información. | C16: N/A

Sheet ResumenCotizacion
B1: Solicitud de Cotización Software de Fabricantes
B3: =SolCotizacion!B3 -> Versión: 30 | C3: =+SolCotizacion!C3 -> 2022-09-30
B4: Información de la Entidad Compradora
B6: Nombre de la Entidad | E6: Secretaria General de la Alcaldia Mayor de Bogotá D.C. | K6: NIT | M6: 899999061
B8: Dirección de la Entidad | E8: Carrera 8 N. 10 - 65 | K8: Correo de contacto | M8: rlondono@alcaldiabogota.gov.co
B10: Municipio | E10: Bogotá D.C. | K10: Teléfono de contacto | M10: 3813000 EXT 1161
B12: Nombre funcionario Comprador | E12: Rafael Londoño Carantón
B16: Solicitud de Cotización
B18: Categoría | E18: Software Analitica S.A.S | I18: Valor TRM | J18: =SolCotizacion!J18 -> 4636.83 | M18: Fecha | N18: =SolCotizacion!N18 -> 2022-10-24
B20: Productos
A22: *Libros, revistas, cartillas y/o catálogo Segmento 1. | B22: =SolCotizacion!B22 -> Software Analitica S.A.S
B24: Cantidad de filas:
B25: 1
B27: Item | C27: Código Catálogo | E27: Descripción del Producto | I27: Tipo | J27: Unidad | K27: Zona | L27: Asistencia | M27: Perfil | N27: Número de parte | O27: Forma de Pago | P27: cantidad | Q27: Precio Unitario | R27: Precio máximo unitario (cláusula 8) | S27: Subtotal | T27: IVA | U27: Precio Total
A28: SGP Licencia por usuario: BPMS Ilimitados Procedimientos (Incluye soporte por el primer año) - Mínimo 20 usuariosRemoto | B28: 1 | C28: SGP-SW-1 | E28: SGP Licencia por usuario: BPMS Ilimitados Procedimientos (Incluye soporte por el primer año) - Mínimo 20 usuarios | I28: Servicio | J28: Usuario | K28: Zonas (1,2,3) | L28: Remoto | M28: N/A | N28: SGP-SW-1 | O28: Único Pago | P28: 20 | Q28: =IFERROR(VLOOKUP("Analitica SAS"&$V28&$C28,temp!$A:$Y,19,0),VLOOKUP("Catalogo principal"&$V28&$C28,temp!$A:$Y,19,0)) -> 1500000 | R28: =ROUND(Q28/(1-(VLOOKUP("Total porcentaje:",$F:$H,3))),2) -> 1556016.6 | S28: =ROUND(P28*R28,2) -> 31120332 | T28: =IFERROR(ROUND(S28*IF(VLOOKUP("Analitica SAS"&$V28&$C28,Consolidado!$A:$U,21,0)=1,19%,0),2),ROUND(S28*IF(VLOOKUP("Catalogo principal"&$V28&$C28,Consolidado!$A:$U,21,0)=1,19%,0),2)) -> 5912863.08 | U28: =S28+T28 -> 37033195.08 | V28: =IFERROR(VLOOKUP($C28&$E$18,Consolidado!$B:$U,5,0),VLOOKUP($C28&"Canal",Consolidado!$B:$U,5,0)) -> Software Analitica S.A.S
A29: SGP Soporte anual por usuario: BPMS (Año Adicional)Remoto | B29: 2 | C29: SGP-SW-2 | E29: SGP Soporte anual por usuario: BPMS (Año Adicional) | I29: Servicio | J29: Usuario | K29: Zonas (1,2,3) | L29: Remoto | M29: N/A | N29: SGP-SW-2 | O29: Anual | P29: 20 | Q29: =IFERROR(VLOOKUP("Analitica SAS"&$V29&$C29,temp!$A:$Y,19,0),VLOOKUP("Catalogo principal"&$V29&$C29,temp!$A:$Y,19,0)) -> 300000 | R29: =ROUND(Q29/(1-(VLOOKUP("Total porcentaje:",$F:$H,3))),2) -> 311203.32 | S29: =ROUND(P29*R29,2) -> 6224066.4 | T29: =IFERROR(ROUND(S29*IF(VLOOKUP("Analitica SAS"&$V29&$C29,Consolidado!$A:$U,21,0)=1,19%,0),2),ROUND(S29*IF(VLOOKUP("Catalogo principal"&$V29&$C29,Consolidado!$A:$U,21,0)=1,19%,0),2)) -> 1182572.62 | U29: =S29+T29 -> 7406639.02 | V29: =IFERROR(VLOOKUP($C29&$E$18,Consolidado!$B:$U,5,0),VLOOKUP($C29&"Canal",Consolidado!$B:$U,5,0)) -> Software Analitica S.A.S
A30: Capacitación para usuario técnico o administrador - hasta 10 Personas SGP (BPMS) Remoto | B30: 3 | C30: SGP-SRV-13 | E30: Capacitación para usuario técnico o administrador - hasta 10 Personas SGP (BPMS) | I30: Servicio | J30: Por sesión de capacitación de 4 horas para un grupo de hasta 10 personas. | K30: Zona 1 | L30: Remoto | M30: Capacitador | N30: SGP-SRV-13 | O30: Mensual por servicios efectivamente prestados | P30: 10 | Q30: =IFERROR(VLOOKUP("Analitica SAS"&$V30&$C30,temp!$A:$Y,19,0),VLOOKUP("Catalogo principal"&$V30&$C30,temp!$A:$Y,19,0)) -> 1376550 | R30: =ROUND(Q30/(1-(VLOOKUP("Total porcentaje:",$F:$H,3))),2) -> 1427956.43 | S30: =ROUND(P30*R30,2) -> 14279564.3 | T30: =IFERROR(ROUND(S30*IF(VLOOKUP("Analitica SAS"&$V30&$C30,Consolidado!$A:$U,21,0)=1,19%,0),2),ROUND(S30*IF(VLOOKUP("Catalogo principal"&$V30&$C30,Consolidado!$A:$U,21,0)=1,19%,0),2)) -> 2713117.22 | U30: =S30+T30 -> 16992681.52 | V30: =IFERROR(VLOOKUP($C30&$E$18,Consolidado!$B:$U,5,0),VLOOKUP($C30&"Canal",Consolidado!$B:$U,5,0)) -> Software Analitica S.A.S
A31: Configuración y parametrización de los Productos - SGP (BPMS) Remoto | B31: 4 | C31: SGP-SRV-25 | E31: Configuración y parametrización de los Productos - SGP (BPMS) | I31: Servicio | J31: Hora | K31: Zona 1 | L31: Remoto | M31: Profesional | N31: SGP-SRV-25 | O31: Mensual por servicios efectivamente prestados | P31: 1000 | Q31: =IFERROR(VLOOKUP("Analitica SAS"&$V31&$C31,temp!$A:$Y,19,0),VLOOKUP("Catalogo principal"&$V31&$C31,temp!$A:$Y,19,0)) -> 94190 | R31: =ROUND(Q31/(1-(VLOOKUP("Total porcentaje:",$F:$H,3))),2) -> 97707.47 | S31: =ROUND(P31*R31,2) -> 97707470 | T31: =IFERROR(ROUND(S31*IF(VLOOKUP("Analitica SAS"&$V31&$C31,Consolidado!$A:$U,21,0)=1,19%,0),2),ROUND(S31*IF(VLOOKUP("Catalogo principal"&$V31&$C31,Consolidado!$A:$U,21,0)=1,19%,0),2)) -> 18564419.3 | U31: =S31+T31 -> 116271889.3 | V31: =IFERROR(VLOOKUP($C31&$E$18,Consolidado!$B:$U,5,0),VLOOKUP($C31&"Canal",Consolidado!$B:$U,5,0)) -> Software Analitica S.A.S
A32: Instalación de Licencia o Suscripción Anual, o afínes - SGP (BPMS)Remoto | B32: 5 | C32: SGP-SRV-31 | E32: Instalación de Licencia o Suscripción Anual, o afínes - SGP (BPMS) | I32: Servicio | J32: Unidad | K32: Zona 1 | L32: Remoto | M32: Técnico/Tecnólogo ó Profesional | N32: SGP-SRV-31 | O32: Mensual por servicios efectivamente prestados | P32: 1 | Q32: =IFERROR(VLOOKUP("Analitica SAS"&$V32&$C32,temp!$A:$Y,19,0),VLOOKUP("Catalogo principal"&$V32&$C32,temp!$A:$Y,19,0)) -> 10143000 | R32: =ROUND(Q32/(1-(VLOOKUP("Total porcentaje:",$F:$H,3))),2) -> 10521784.23 | S32: =ROUND(P32*R32,2) -> 10521784.23 | T32: =IFERROR(ROUND(S32*IF(VLOOKUP("Analitica SAS"&$V32&$C32,Consolidado!$A:$U,21,0)=1,19%,0),2),ROUND(S32*IF(VLOOKUP("Catalogo principal"&$V32&$C32,Consolidado!$A:$U,21,0)=1,19%,0),2)) -> 1999139 | U32: =S32+T32 -> 12520923.23 | V32: =IFERROR(VLOOKUP($C32&$E$18,Consolidado!$B:$U,5,0),VLOOKUP($C32&"Canal",Consolidado!$B:$U,5,0)) -> Software Analitica S.A.S
B33: 1. Si requiere agregue o elimine fila | T33: Valor Total | U33: =ROUND(SUM($U$28:$U$32),2) -> 190225328.2
B36: Gravámenes adicionales*
B37: Si los hay, indique los gravámenes adicionales a los que está sujeta la Orden de Compra. Son gravámenes adicionales por ejemplo; estampillas y demás impuestos territoriales. Los impuestos como ICA y retención en la fuente NO son gravámenes adicionales.
B38: Gravámenes adicionales (estampillas)
B39: No | C39: Descripción | H39: Porcentaje
B40: 1 | C40: PROADULTO MAYOR | H40: 0.02
B41: 2 | C41: PROCULTURA | H41: 0.005
B42: 3 | C42: UNIVERSIDAD DISTRITAL FRANCISCO JOSE DE CALDAS | H42: 0.011
F43: Total porcentaje: | H43: =SUM(H40:H42) -> 0.036
D44: Filas a agregar o eliminar Gravámenes:
D45: 1
... 1 more rows

Sheet Cotizacion
B1: Solicitud de Cotización Software de Fabricantes
B3: =SolCotizacion!B3 -> Versión: 30 | C3: =SolCotizacion!C3 -> 2022-09-30
B4: Información de la Entidad Compradora
B6: Nombre de la Entidad | E6: Secretaria General de la Alcaldia Mayor de Bogotá D.C. | K6: NIT | M6: 899999061
B8: Dirección de la Entidad | E8: Carrera 8 N. 10 - 65 | K8: Correo de contacto | M8: rlondono@alcaldiabogota.gov.co
B10: Municipio | E10: Bogotá D.C. | K10: Teléfono de contacto | M10: 3813000 EXT 1161
B12: Nombre funcionario Comprador | E12: Rafael Londoño Carantón
B16: Solicitud de Cotización
B18: Categoría | E18: Software Analitica S.A.S | I18: Valor TRM | J18: =SolCotizacion!J18 -> 4636.83 | M18: Fecha | N18: =SolCotizacion!N18 -> 2022-10-24
B20: Productos
A22: *Libros, revistas, cartillas y/o catálogo Segmento 1. | B22: =SolCotizacion!B22 -> Software Analitica S.A.S
B24: Cantidad de filas:
B25: 1 | L25: Proveedor
B27: Item | C27: Código Catálogo | E27: Descripción del Producto | I27: Tipo | J27: Unidad | K27: Zona | L27: Asistencia | M27: Perfil | N27: Número de parte | O27: Forma de Pago | P27: cantidad | Q27: Precio Unitario | R27: Precio máximo unitario (cláusula 8) | S27: Descuento adicional | T27: Precio con Descuento | U27: Subtotal | V27: IVA | W27: Vr IVA | X27: Precio Total
A28: SGP Licencia por usuario: BPMS Ilimitados Procedimientos (Incluye soporte por el primer año) - Mínimo 20 usuariosRemoto | B28: 1 | C28: SGP-SW-1 | E28: SGP Licencia por usuario: BPMS Ilimitados Procedimientos (Incluye soporte por el primer año) - Mínimo 20 usuarios | I28: Servicio | J28: Usuario | K28: Zonas (1,2,3) | L28: Remoto | M28: N/A | N28: SGP-SW-1 | O28: Único Pago | P28: 20 | Q28: =IFERROR(VLOOKUP($N$25&$Y28&$C28,temp!$A:$Y,19,0),VLOOKUP("Catalogo principal"&$Y28&$C28,temp!$A:$Y,19,0)) ->  | R28: =ROUND(Q28/(1-(VLOOKUP("Total porcentaje:",$F:$H,3))),2) ->  | T28: =ROUND(R28*(1-S28),2) ->  | U28: =ROUND(P28*T28,2) ->  | W28: =IF(V28="Si",U28*19%,0) -> 0 | X28: =U28+W28 ->  | Y28: =IFERROR(VLOOKUP($C28&$E$18,Consolidado!$B:$U,5,0),VLOOKUP($C28&"Canal",Consolidado!$B:$U,5,0)) -> Software Analitica S.A.S
A29: SGP Soporte anual por usuario: BPMS (Año Adicional)Remoto | B29: 2 | C29: SGP-SW-2 | E29: SGP Soporte anual por usuario: BPMS (Año Adicional) | I29: Servicio | J29: Usuario | K29: Zonas (1,2,3) | L29: Remoto | M29: N/A | N29: SGP-SW-2 | O29: Anual | P29: 20 | Q29: =IFERROR(VLOOKUP($N$25&$Y29&$C29,temp!$A:$Y,19,0),VLOOKUP("Catalogo principal"&$Y29&$C29,temp!$A:$Y,19,0)) ->  | R29: =ROUND(Q29/(1-(VLOOKUP("Total porcentaje:",$F:$H,3))),2) ->  | T29: =ROUND(R29*(1-S29),2) ->  | U29: =ROUND(P29*T29,2) ->  | W29: =IF(V29="Si",U29*19%,0) -> 0 | X29: =U29+W29 ->  | Y29: =IFERROR(VLOOKUP($C29&$E$18,Consolidado!$B:$U,5,0),VLOOKUP($C29&"Canal",Consolidado!$B:$U,5,0)) -> Software Analitica S.A.S
A30: Capacitación para usuario técnico o administrador - hasta 10 Personas SGP (BPMS) Remoto | B30: 3 | C30: SGP-SRV-13 | E30: Capacitación para usuario técnico o administrador - hasta 10 Personas SGP (BPMS) | I30: Servicio | J30: Por sesión de capacitación de 4 horas para un grupo de hasta 10 personas. | K30: Zona 1 | L30: Remoto | M30: Capacitador | N30: SGP-SRV-13 | O30: Mensual por servicios efectivamente prestados | P30: 10 | Q30: =IFERROR(VLOOKUP($N$25&$Y30&$C30,temp!$A:$Y,19,0),VLOOKUP("Catalogo principal"&$Y30&$C30,temp!$A:$Y,19,0)) ->  | R30: =ROUND(Q30/(1-(VLOOKUP("Total porcentaje:",$F:$H,3))),2) ->  | T30: =ROUND(R30*(1-S30),2) ->  | U30: =ROUND(P30*T30,2) ->  | W30: =IF(V30="Si",U30*19%,0) -> 0 | X30: =U30+W30 ->  | Y30: =IFERROR(VLOOKUP($C30&$E$18,Consolidado!$B:$U,5,0),VLOOKUP($C30&"Canal",Consolidado!$B:$U,5,0)) -> Software Analitica S.A.S
A31: Configuración y parametrización de los Productos - SGP (BPMS) Remoto | B31: 4 | C31: SGP-SRV-25 | E31: Configuración y parametrización de los Productos - SGP (BPMS) | I31: Servicio | J31: Hora | K31: Zona 1 | L31: Remoto | M31: Profesional | N31: SGP-SRV-25 | O31: Mensual por servicios efectivamente prestados | P31: 1000 | Q31: =IFERROR(VLOOKUP($N$25&$Y31&$C31,temp!$A:$Y,19,0),VLOOKUP("Catalogo principal"&$Y31&$C31,temp!$A:$Y,19,0)) ->  | R31: =ROUND(Q31/(1-(VLOOKUP("Total porcentaje:",$F:$H,3))),2) ->  | T31: =ROUND(R31*(1-S31),2) ->  | U31: =ROUND(P31*T31,2) ->  | W31: =IF(V31="Si",U31*19%,0) -> 0 | X31: =U31+W31 ->  | Y31: =IFERROR(VLOOKUP($C31&$E$18,Consolidado!$B:$U,5,0),VLOOKUP($C31&"Canal",Consolidado!$B:$U,5,0)) -> Software Analitica S.A.S
A32: Instalación de Licencia o Suscripción Anual, o afínes - SGP (BPMS)Remoto | B32: 5 | C32: SGP-SRV-31 | E32: Instalación de Licencia o Suscripción Anual, o afínes - SGP (BPMS) | I32: Servicio | J32: Unidad | K32: Zona 1 | L32: Remoto | M32: Técnico/Tecnólogo ó Profesional | N32: SGP-SRV-31 | O32: Mensual por servicios efectivamente prestados | P32: 1 | Q32: =IFERROR(VLOOKUP($N$25&$Y32&$C32,temp!$A:$Y,19,0),VLOOKUP("Catalogo principal"&$Y32&$C32,temp!$A:$Y,19,0)) ->  | R32: =ROUND(Q32/(1-(VLOOKUP("Total porcentaje:",$F:$H,3))),2) ->  | T32: =ROUND(R32*(1-S32),2) ->  | U32: =ROUND(P32*T32,2) ->  | W32: =IF(V32="Si",U32*19%,0) -> 0 | X32: =U32+W32 ->  | Y32: =IFERROR(VLOOKUP($C32&$E$18,Consolidado!$B:$U,5,0),VLOOKUP($C32&"Canal",Consolidado!$B:$U,5,0)) -> Software Analitica S.A.S
B33: 1. Si requiere agregue o elimine fila | W33: Valor Total | X33: =ROUND(SUM($X$28:$X$32),2) -> 
B36: Gravámenes adicionales*
B37: Si los hay, indique los gravámenes adicionales a los que está sujeta la Orden de Compra. Son gravámenes adicionales por ejemplo; estampillas y demás impuestos territoriales. Los impuestos como ICA y retención en la fuente NO son gravámenes adicionales.
B38: Gravámenes adicionales (estampillas)
B39: No | C39: Descripción | H39: Porcentaje
B40: 1 | C40: PROADULTO MAYOR | H40: 0.02
B41: 2 | C41: PROCULTURA | H41: 0.005
B42: 3 | C42: UNIVERSIDAD DISTRITAL FRANCISCO JOSE DE CALDAS | H42: 0.011
F43: Total porcentaje: | H43: =SUM(H40:H42) -> 0.036
D44: Filas a agregar o eliminar Gravámenes:
D45: 1

Sheet Parametros (hidden)
A1: clave | B1: valor
A2: nomCSV | B2: solFabricantesSoftware
A3: codAMP | B3: wfa01

Sheet CSV (hidden)
A1: Tipo | B1: Cantidad | C1: CÃ³digo de unidad de medida* | D1: Precio base | E1: Divisa | F1: DescripciÃ³n | G1: MercancÃ­a
A2: item | B2: 20 | C2: Serv | D2: "1487500" | E2: COP | F2: wfa01--IT-SW-01-03 CapacitaciÃ³n para usuario final - hasta 10 Personas.
A3: item | B3: 1 | C3: Und | D3: "5652500" | E3: COP | F3: wfa01--IVA

Sheet Categorias (hidden)
A1: Categoría 1 | B1: Sistema Operativo, Plataforma, Nube e Infraestructura y Desarrollo Aplicaciones (Open – CSP)
A2: Categoría 2 | B2: Productividad Administración y análisis de datos (Open - CSP)
A3: Categoría 3 | B3: Movilidad (Open - CSP)
A4: Categoría 4 | B4: Aplicaciones empresariales (Open - CSP)
A5: Categoría 5 | B5: Campus (Educativo)
A6: Categoría 6 | B6: OVS (Educativo)
A7: Categoría 7 | B7: Open - CSP (Educativo)

Sheet Consolidado (hidden)
A1: LLAVE | B1: TEMP1 | C1: TEMP2 | D1: PROVEEDOR | E1: Código matriz Colombia Compra Eficiente | F1: categoria | G1: PROVEEDOR2 | H1: Moneda | I1: Parametrización de los Servicios | J1: Nombre Producto | K1: Unidad de Medida | L1: Unidad TVEC | M1: Tipo | N1: Zona | O1: Asistencia | P1: Perfil | Q1: Número de parte | R1: Forma de Pago | S1: Precio | T1: Activo | U1: IVA | V1: Moneda | X1: Familia
A2: =D2&F2&E2 -> Pensemos SASoftware Pensemos SACON-SVE-01 | B2: =E2&F2 -> CON-SVE-01Software Pensemos SA | D2: Pensemos SA | E2: CON-SVE-01 | F2: Software Pensemos SA | G2: =D2 -> Pensemos SA | H2: COP | I2: N/A | J2: Capacitación para usuario final - hasta 10 Personas. | K2: Por sesión de capacitación de 4 horas para un grupo de hasta 10 personas. | L2: Und | M2: Servicio | N2: Zonas (1,2,3) | O2: Remoto | P2: Capacitador | Q2: =+E2 -> CON-SVE-01 | R2: Mensual por servicios efectivamente prestados | S2: 680000 | T2: 1 | U2: 1 | V2: COP
A3: Pensemos SASoftware Pensemos SACON-SVE-02 | B3: CON-SVE-02Software Pensemos SA | D3: Pensemos SA | E3: CON-SVE-02 | F3: Software Pensemos SA | G3: Pensemos SA | H3: COP | I3: N/A | J3: Capacitación para usuario final - hasta 10 Personas. | K3: Por sesión de capacitación de 16 horas para un grupo de hasta 10 personas. | L3: Und | M3: Servicio | N3: Zona 1 | O3: Sitio | P3: Capacitador | Q3: CON-SVE-02 | R3: Mensual por servicios efectivamente prestados | S3: 4800000 | T3: 1 | U3: 1 | V3: COP
A4: Pensemos SASoftware Pensemos SACON-SVE-03 | B4: CON-SVE-03Software Pensemos SA | D4: Pensemos SA | E4: CON-SVE-03 | F4: Software Pensemos SA | G4: Pensemos SA | H4: COP | I4: N/A | J4: Capacitación para usuario final - hasta 10 Personas. | K4: Por sesión de capacitación de 16 horas para un grupo de hasta 10 personas. | L4: Und | M4: Servicio | N4: Zona 2 | O4: Sitio | P4: Capacitador | Q4: CON-SVE-03 | R4: Mensual por servicios efectivamente prestados | S4: 5400000 | T4: 1 | U4: 1 | V4: COP
A5: Pensemos SASoftware Pensemos SACON-SVE-04 | B5: CON-SVE-04Software Pensemos SA | D5: Pensemos SA | E5: CON-SVE-04 | F5: Software Pensemos SA | G5: Pensemos SA | H5: COP | I5: N/A | J5: Capacitación para usuario final - hasta 10 Personas. | K5: Por sesión de capacitación de 16 horas para un grupo de hasta 10 personas. | L5: Und | M5: Servicio | N5: Zona 3 | O5: Sitio | P5: Capacitador | Q5: CON-SVE-04 | R5: Mensual por servicios efectivamente prestados | S5: 5900000 | T5: 1 | U5: 1 | V5: COP
A6: Pensemos SASoftware Pensemos SACON-SVE-05 | B6: CON-SVE-05Software Pensemos SA | D6: Pensemos SA | E6: CON-SVE-05 | F6: Software Pensemos SA | G6: Pensemos SA | H6: COP | I6: N/A | J6: Capacitación para usuario final - hasta 20 Personas. | K6: Por sesión de capacitación de 4 horas para un grupo de hasta 10 personas. | L6: Und | M6: Servicio | N6: Zonas (1,2,3) | O6: Remoto | P6: Capacitador | Q6: CON-SVE-05 | R6: Mensual por servicios efectivamente prestados | S6: 780000 | T6: 1 | U6: 1 | V6: COP
A7: Pensemos SASoftware Pensemos SACON-SVE-06 | B7: CON-SVE-06Software Pensemos SA | D7: Pensemos SA | E7: CON-SVE-06 | F7: Software Pensemos SA | G7: Pensemos SA | H7: COP | I7: N/A | J7: Capacitación para usuario final - hasta 20 Personas. | K7: Por sesión de capacitación de 16 horas para un grupo de hasta 10 personas. | L7: Und | M7: Servicio | N7: Zona 1 | O7: Sitio | P7: Capacitador | Q7: CON-SVE-06 | R7: Mensual por servicios efectivamente prestados | S7: 6200000 | T7: 1 | U7: 1 | V7: COP
A8: Pensemos SASoftware Pensemos SACON-SVE-07 | B8: CON-SVE-07Software Pensemos SA | D8: Pensemos SA | E8: CON-SVE-07 | F8: Software Pensemos SA | G8: Pensemos SA | H8: COP | I8: N/A | J8: Capacitación para usuario final - hasta 20 Personas. | K8: Por sesión de capacitación de 16 horas para un grupo de hasta 10 personas. | L8: Und | M8: Servicio | N8: Zona 2 | O8: Sitio | P8: Capacitador | Q8: CON-SVE-07 | R8: Mensual por servicios efectivamente prestados | S8: 6800000 | T8: 1 | U8: 1 | V8: COP
A9: Pensemos SASoftware Pensemos SACON-SVE-08 | B9: CON-SVE-08Software Pensemos SA | D9: Pensemos SA | E9: CON-SVE-08 | F9: Software Pensemos SA | G9: Pensemos SA | H9: COP | I9: N/A | J9: Capacitación para usuario final - hasta 20 Personas. | K9: Por sesión de capacitación de 16 horas para un grupo de hasta 10 personas. | L9: Und | M9: Servicio | N9: Zona 3 | O9: Sitio | P9: Capacitador | Q9: CON-SVE-08 | R9: Mensual por servicios efectivamente prestados | S9: 7400000 | T9: 1 | U9: 1 | V9: COP
A10: Pensemos SASoftware Pensemos SACON-SVE-09 | B10: CON-SVE-09Software Pensemos SA | D10: Pensemos SA | E10: CON-SVE-09 | F10: Software Pensemos SA | G10: Pensemos SA | H10: COP | I10: N/A | J10: Capacitación para usuario técnico o administrador - hasta 5 Personas. | K10: Por sesión de capacitación de 4 horas para un grupo de hasta 5 personas. | L10: Und | M10: Servicio | N10: Zonas (1,2,3) | O10: Remoto | P10: Capacitador | Q10: CON-SVE-09 | R10: Mensual por servicios efectivamente prestados | S10: 480000 | T10: 1 | U10: 1 | V10: COP
A11: Pensemos SASoftware Pensemos SACON-SVE-10 | B11: CON-SVE-10Software Pensemos SA | D11: Pensemos SA | E11: CON-SVE-10 | F11: Software Pensemos SA | G11: Pensemos SA | H11: COP | I11: N/A | J11: Capacitación para usuario técnico o administrador - hasta 5 Personas. | K11: Por sesión de capacitación de 16 horas para un grupo de hasta 5 personas. | L11: Und | M11: Servicio | N11: Zona 1 | O11: Sitio | P11: Capacitador | Q11: CON-SVE-10 | R11: Mensual por servicios efectivamente prestados | S11: 4800000 | T11: 1 | U11: 1 | V11: COP
A12: Pensemos SASoftware Pensemos SACON-SVE-11 | B12: CON-SVE-11Software Pensemos SA | D12: Pensemos SA | E12: CON-SVE-11 | F12: Software Pensemos SA | G12: Pensemos SA | H12: COP | I12: N/A | J12: Capacitación para usuario técnico o administrador - hasta 5 Personas. | K12: Por sesión de capacitación de 16 horas para un grupo de hasta 5 personas. | L12: Und | M12: Servicio | N12: Zona 2 | O12: Sitio | P12: Capacitador | Q12: CON-SVE-11 | R12: Mensual por servicios efectivamente prestados | S12: 5400000 | T12: 1 | U12: 1 | V12: COP
A13: Pensemos SASoftware Pensemos SACON-SVE-12 | B13: CON-SVE-12Software Pensemos SA | D13: Pensemos SA | E13: CON-SVE-12 | F13: Software Pensemos SA | G13: Pensemos SA | H13: COP | I13: N/A | J13: Capacitación para usuario técnico o administrador - hasta 5 Personas. | K13: Por sesión de capacitación de 16 horas para un grupo de hasta 5 personas. | L13: Und | M13: Servicio | N13: Zona 3 | O13: Sitio | P13: Capacitador | Q13: CON-SVE-12 | R13: Mensual por servicios efectivamente prestados | S13: 5900000 | T13: 1 | U13: 1 | V13: COP
A14: Pensemos SASoftware Pensemos SACON-SVE-13 | B14: CON-SVE-13Software Pensemos SA | D14: Pensemos SA | E14: CON-SVE-13 | F14: Software Pensemos SA | G14: Pensemos SA | H14: COP | I14: N/A | J14: Configuración y parametrización de los Productos | K14: Por sesión de trabajo de 4 horas | L14: Und | M14: Servicio | N14: Zona 1 | O14: Remoto | P14: Profesional | Q14: CON-SVE-13 | R14: Mensual por servicios efectivamente prestados | S14: 760000 | T14: 1 | U14: 1 | V14: COP
A15: Pensemos SASoftware Pensemos SACON-SVE-14 | B15: CON-SVE-14Software Pensemos SA | D15: Pensemos SA | E15: CON-SVE-14 | F15: Software Pensemos SA | G15: Pensemos SA | H15: COP | I15: N/A | J15: Configuración y parametrización de los Productos | K15: Por sesión de trabajo de hasta 4 días | L15: Und | M15: Servicio | N15: Zona 1 | O15: Sitio | P15: Profesional | Q15: CON-SVE-14 | R15: Mensual por servicios efectivamente prestados | S15: 8600000 | T15: 1 | U15: 1 | V15: COP
A16: Pensemos SASoftware Pensemos SACON-SVE-15 | B16: CON-SVE-15Software Pensemos SA | D16: Pensemos SA | E16: CON-SVE-15 | F16: Software Pensemos SA | G16: Pensemos SA | H16: COP | I16: N/A | J16: Configuración y parametrización de los Productos | K16: Por sesión de trabajo de hasta 4 días | L16: Und | M16: Servicio | N16: Zona 2 | O16: Sitio | P16: Profesional | Q16: CON-SVE-15 | R16: Mensual por servicios efectivamente prestados | S16: 9200000 | T16: 1 | U16: 1 | V16: COP
A17: Pensemos SASoftware Pensemos SACON-SVE-16 | B17: CON-SVE-16Software Pensemos SA | D17: Pensemos SA | E17: CON-SVE-16 | F17: Software Pensemos SA | G17: Pensemos SA | H17: COP | I17: N/A | J17: Configuración y parametrización de los Productos | K17: Por sesión de trabajo de hasta 4 días | L17: Und | M17: Servicio | N17: Zona 3 | O17: Sitio | P17: Profesional | Q17: CON-SVE-16 | R17: Mensual por servicios efectivamente prestados | S17: 9800000 | T17: 1 | U17: 1 | V17: COP
A18: Pensemos SASoftware Pensemos SACON-SVE-17 | B18: CON-SVE-17Software Pensemos SA | D18: Pensemos SA | E18: CON-SVE-17 | F18: Software Pensemos SA | G18: Pensemos SA | H18: COP | I18: N/A | J18: Configuración técnica o reportes específicos para la entidad | K18: Hora | L18: Und | M18: Servicio | N18: Zonas (1,2,3) | O18: Remoto | P18: Profesional | Q18: CON-SVE-17 | R18: Mensual por servicios efectivamente prestados | S18: 120000 | T18: 1 | U18: 1 | V18: COP
A19: Pensemos SASoftware Pensemos SASOP-SVE-01 | B19: SOP-SVE-01Software Pensemos SA | D19: Pensemos SA | E19: SOP-SVE-01 | F19: Software Pensemos SA | G19: Pensemos SA | H19: COP | I19: N/A | J19: Gerente de cuenta (soporte) | K19: Mes | L19: Und | M19: Servicio | N19: Zonas (1,2,3) | O19: Remoto | P19: Profesional | Q19: SOP-SVE-01 | R19: Mensual por servicios efectivamente prestados | S19: 960000 | T19: 1 | U19: 1 | V19: COP
A20: Pensemos SASoftware Pensemos SASOP-SVE-02 | B20: SOP-SVE-02Software Pensemos SA | D20: Pensemos SA | E20: SOP-SVE-02 | F20: Software Pensemos SA | G20: Pensemos SA | H20: COP | I20: N/A | J20: Instalación del Servidor con la Suite Visión Empresarial | K20: Unidad | L20: Und | M20: Servicio | N20: Zonas (1,2,3) | O20: Remoto | P20: Profesional | Q20: SOP-SVE-02 | R20: Mensual por servicios efectivamente prestados | S20: 2300000 | T20: 1 | U20: 1 | V20: COP
A21: Pensemos SASoftware Pensemos SASOP-SVE-03 | B21: SOP-SVE-03Software Pensemos SA | D21: Pensemos SA | E21: SOP-SVE-03 | F21: Software Pensemos SA | G21: Pensemos SA | H21: COP | I21: N/A | J21: Instalación del Servidor con la Suite Visión Empresarial | K21: Unidad | L21: Und | M21: Servicio | N21: Zona 1 | O21: Sitio | P21: Profesional | Q21: SOP-SVE-03 | R21: Mensual por servicios efectivamente prestados | S21: 4800000 | T21: 1 | U21: 1 | V21: COP
A22: Pensemos SASoftware Pensemos SASOP-SVE-04 | B22: SOP-SVE-04Software Pensemos SA | D22: Pensemos SA | E22: SOP-SVE-04 | F22: Software Pensemos SA | G22: Pensemos SA | H22: COP | I22: N/A | J22: Instalación del Servidor con la Suite Visión Empresarial | K22: Unidad | L22: Und | M22: Servicio | N22: Zona 2 | O22: Sitio | P22: Profesional | Q22: SOP-SVE-04 | R22: Mensual por servicios efectivamente prestados | S22: 5400000 | T22: 1 | U22: 1 | V22: COP
A23: Pensemos SASoftware Pensemos SASOP-SVE-05 | B23: SOP-SVE-05Software Pensemos SA | D23: Pensemos SA | E23: SOP-SVE-05 | F23: Software Pensemos SA | G23: Pensemos SA | H23: COP | I23: N/A | J23: Instalación del Servidor con la Suite Visión Empresarial | K23: Unidad | L23: Und | M23: Servicio | N23: Zona 3 | O23: Sitio | P23: Profesional | Q23: SOP-SVE-05 | R23: Mensual por servicios efectivamente prestados | S23: 5900000 | T23: 1 | U23: 1 | V23: COP
A24: Pensemos SASoftware Pensemos SASOP-SVE-06 | B24: SOP-SVE-06Software Pensemos SA | D24: Pensemos SA | E24: SOP-SVE-06 | F24: Software Pensemos SA | G24: Pensemos SA | H24: COP | I24: N/A | J24: Soporte técnico remoto | K24: Por sesión de trabajo de hasta 4 horas | L24: Und | M24: Servicio | N24: Zonas (1,2,3) | O24: Remoto | P24: Profesional | Q24: SOP-SVE-06 | R24: Mensual por servicios efectivamente prestados | S24: 780000 | T24: 1 | U24: 1 | V24: COP
A25: Pensemos SASoftware Pensemos SASOP-SVE-07 | B25: SOP-SVE-07Software Pensemos SA | D25: Pensemos SA | E25: SOP-SVE-07 | F25: Software Pensemos SA | G25: Pensemos SA | H25: COP | I25: N/A | J25: Soporte técnico en sitio | K25: Por sesión de trabajo de hasta 2 días | L25: Und | M25: Servicio | N25: Zona 1 | O25: Sitio | P25: Profesional | Q25: SOP-SVE-07 | R25: Mensual por servicios efectivamente prestados | S25: 6000000 | T25: 1 | U25: 1 | V25: COP
A26: Pensemos SASoftware Pensemos SASOP-SVE-08 | B26: SOP-SVE-08Software Pensemos SA | D26: Pensemos SA | E26: SOP-SVE-08 | F26: Software Pensemos SA | G26: Pensemos SA | H26: COP | I26: N/A | J26: Soporte técnico en sitio | K26: Por sesión de trabajo de hasta 2 días | L26: Und | M26: Servicio | N26: Zona 2 | O26: Sitio | P26: Profesional | Q26: SOP-SVE-08 | R26: Mensual por servicios efectivamente prestados | S26: 6600000 | T26: 1 | U26: 1 | V26: COP
A27: Pensemos SASoftware Pensemos SASOP-SVE-09 | B27: SOP-SVE-09Software Pensemos SA | D27: Pensemos SA | E27: SOP-SVE-09 | F27: Software Pensemos SA | G27: Pensemos SA | H27: COP | I27: N/A | J27: Soporte técnico en sitio | K27: Por sesión de trabajo de hasta 2 días | L27: Und | M27: Servicio | N27: Zona 3 | O27: Sitio | P27: Profesional | Q27: SOP-SVE-09 | R27: Mensual por servicios efectivamente prestados | S27: 7200000 | T27: 1 | U27: 1 | V27: COP
A28: Pensemos SASoftware Pensemos SALIC-SVE-01 | B28: LIC-SVE-01Software Pensemos SA | D28: Pensemos SA | E28: LIC-SVE-01 | F28: Software Pensemos SA | G28: Pensemos SA | H28: COP | I28: N/A | J28: Licenciamiento perpetuo SVE Gestión de la Estrategia | K28: Licencia primeros 10 usuarios nombrados | L28: Und | M28: Producto | N28: Zonas (1,2,3) | O28: Remoto | P28: N/A | Q28: LIC-SVE-01 | R28: Unico pago | S28: 39000000 | T28: 1 | U28: 1 | V28: COP
A29: Pensemos SASoftware Pensemos SALIC-SVE-02 | B29: LIC-SVE-02Software Pensemos SA | D29: Pensemos SA | E29: LIC-SVE-02 | F29: Software Pensemos SA | G29: Pensemos SA | H29: COP | I29: N/A | J29: Licenciamiento perpetuo SVE Gestión de la Estrategia - usuario adicional | K29: Licencia usuario nombrado adicional | L29: Und | M29: Producto | N29: Zonas (1,2,3) | O29: Remoto | P29: N/A | Q29: LIC-SVE-02 | R29: Unico pago | S29: 1100000 | T29: 1 | U29: 1 | V29: COP
A30: Pensemos SASoftware Pensemos SALIC-SVE-03 | B30: LIC-SVE-03Software Pensemos SA | D30: Pensemos SA | E30: LIC-SVE-03 | F30: Software Pensemos SA | G30: Pensemos SA | H30: COP | I30: N/A | J30: Licenciamiento perpetuo SVE Gestión de Calidad | K30: Licencia primeros 10 usuarios nombrados | L30: Und | M30: Producto | N30: Zonas (1,2,3) | O30: Remoto | P30: N/A | Q30: LIC-SVE-03 | R30: Unico pago | S30: 18000000 | T30: 1 | U30: 1 | V30: COP
A31: Pensemos SASoftware Pensemos SALIC-SVE-04 | B31: LIC-SVE-04Software Pensemos SA | D31: Pensemos SA | E31: LIC-SVE-04 | F31: Software Pensemos SA | G31: Pensemos SA | H31: COP | I31: N/A | J31: Licenciamiento perpetuo SVE Gestión de Calidad - usuario adicional | K31: Licencia usuario nombrado adicional | L31: Und | M31: Producto | N31: Zonas (1,2,3) | O31: Remoto | P31: N/A | Q31: LIC-SVE-04 | R31: Unico pago | S31: 600000 | T31: 1 | U31: 1 | V31: COP
A32: Pensemos SASoftware Pensemos SALIC-SVE-05 | B32: LIC-SVE-05Software Pensemos SA | D32: Pensemos SA | E32: LIC-SVE-05 | F32: Software Pensemos SA | G32: Pensemos SA | H32: COP | I32: N/A | J32: Licenciamiento perpetuo SVE MIPG | K32: Licencia primeros 10 usuarios nombrados | L32: Und | M32: Producto | N32: Zonas (1,2,3) | O32: Remoto | P32: N/A | Q32: LIC-SVE-05 | R32: Unico pago | S32: 31500000 | T32: 1 | U32: 1 | V32: COP
A33: Pensemos SASoftware Pensemos SALIC-SVE-06 | B33: LIC-SVE-06Software Pensemos SA | D33: Pensemos SA | E33: LIC-SVE-06 | F33: Software Pensemos SA | G33: Pensemos SA | H33: COP | I33: N/A | J33: Licenciamiento perpetuo SVE MIPG - usuario adicional | K33: Licencia usuario nombrado adicional | L33: Und | M33: Producto | N33: Zonas (1,2,3) | O33: Remoto | P33: N/A | Q33: LIC-SVE-06 | R33: Unico pago | S33: 1150000 | T33: 1 | U33: 1 | V33: COP
A34: Pensemos SASoftware Pensemos SALIC-SVE-07 | B34: LIC-SVE-07Software Pensemos SA | D34: Pensemos SA | E34: LIC-SVE-07 | F34: Software Pensemos SA | G34: Pensemos SA | H34: COP | I34: N/A | J34: Licenciamiento perpetuo SVE Gestión de Proyectos | K34: Licencia primeros 10 usuarios nombrados | L34: Und | M34: Producto | N34: Zonas (1,2,3) | O34: Remoto | P34: N/A | Q34: LIC-SVE-07 | R34: Unico pago | S34: 29000000 | T34: 1 | U34: 1 | V34: COP
A35: Pensemos SASoftware Pensemos SALIC-SVE-08 | B35: LIC-SVE-08Software Pensemos SA | D35: Pensemos SA | E35: LIC-SVE-08 | F35: Software Pensemos SA | G35: Pensemos SA | H35: COP | I35: N/A | J35: Licenciamiento perpetuo SVE Gestión de Proyectos - usuario adicional | K35: Licencia usuario nombrado adicional | L35: Und | M35: Producto | N35: Zonas (1,2,3) | O35: Remoto | P35: N/A | Q35: LIC-SVE-08 | R35: Unico pago | S35: 900000 | T35: 1 | U35: 1 | V35: COP
A36: Pensemos SASoftware Pensemos SALIC-SVE-09 | B36: LIC-SVE-09Software Pensemos SA | D36: Pensemos SA | E36: LIC-SVE-09 | F36: Software Pensemos SA | G36: Pensemos SA | H36: COP | I36: N/A | J36: Licenciamiento perpetuo SVE Gestión de Riesgos | K36: Licencia primeros 10 usuarios nombrados | L36: Und | M36: Producto | N36: Zonas (1,2,3) | O36: Remoto | P36: N/A | Q36: LIC-SVE-09 | R36: Unico pago | S36: 17500000 | T36: 1 | U36: 1 | V36: COP
A37: Pensemos SASoftware Pensemos SALIC-SVE-10 | B37: LIC-SVE-10Software Pensemos SA | D37: Pensemos SA | E37: LIC-SVE-10 | F37: Software Pensemos SA | G37: Pensemos SA | H37: COP | I37: N/A | J37: Licenciamiento perpetuo SVE Gestión de Riesgos - usuario adicional | K37: Licencia usuario nombrado adicional | L37: Und | M37: Producto | N37: Zonas (1,2,3) | O37: Remoto | P37: N/A | Q37: LIC-SVE-10 | R37: Unico pago | S37: 750000 | T37: 1 | U37: 1 | V37: COP
A38: Pensemos SASoftware Pensemos SALIC-SVE-11 | B38: LIC-SVE-11Software Pensemos SA | D38: Pensemos SA | E38: LIC-SVE-11 | F38: Software Pensemos SA | G38: Pensemos SA | H38: COP | I38: N/A | J38: Licenciamiento perpetuo SVE Analítico | K38: Licencia primeros 20 usuarios nombrados | L38: Und | M38: Producto | N38: Zonas (1,2,3) | O38: Remoto | P38: N/A | Q38: LIC-SVE-11 | R38: Unico pago | S38: 42000000 | T38: 1 | U38: 1 | V38: COP
A39: Pensemos SASoftware Pensemos SALIC-SVE-12 | B39: LIC-SVE-12Software Pensemos SA | D39: Pensemos SA | E39: LIC-SVE-12 | F39: Software Pensemos SA | G39: Pensemos SA | H39: COP | I39: N/A | J39: Licenciamiento perpetuo SVE Analítico - usuario adicional | K39: Licencia usuario nombrado adicional | L39: Und | M39: Producto | N39: Zonas (1,2,3) | O39: Remoto | P39: N/A | Q39: LIC-SVE-12 | R39: Unico pago | S39: 800000 | T39: 1 | U39: 1 | V39: COP
A40: Pensemos SASoftware Pensemos SALIC-SVE-13 | B40: LIC-SVE-13Software Pensemos SA | D40: Pensemos SA | E40: LIC-SVE-13 | F40: Software Pensemos SA | G40: Pensemos SA | H40: COP | I40: N/A | J40: Licenciamiento perpetuo SVE GRC | K40: Licencia primeros 10 usuarios nombrados | L40: Und | M40: Producto | N40: Zonas (1,2,3) | O40: Remoto | P40: N/A | Q40: LIC-SVE-13 | R40: Unico pago | S40: 47000000 | T40: 1 | U40: 1 | V40: COP
A41: Pensemos SASoftware Pensemos SALIC-SVE-14 | B41: LIC-SVE-14Software Pensemos SA | D41: Pensemos SA | E41: LIC-SVE-14 | F41: Software Pensemos SA | G41: Pensemos SA | H41: COP | I41: N/A | J41: Licenciamiento perpetuo SVE GRC - usuario adicional | K41: Licencia usuario nombrado adicional | L41: Und | M41: Producto | N41: Zonas (1,2,3) | O41: Remoto | P41: N/A | Q41: LIC-SVE-14 | R41: Unico pago | S41: 1700000 | T41: 1 | U41: 1 | V41: COP
A42: Pensemos SASoftware Pensemos SALIC-SVE-15 | B42: LIC-SVE-15Software Pensemos SA | D42: Pensemos SA | E42: LIC-SVE-15 | F42: Software Pensemos SA | G42: Pensemos SA | H42: COP | I42: N/A | J42: Licenciamiento perpetuo SVE módulo Indicadores - usuario adicional | K42: Licencia usuario nombrado adicional | L42: Und | M42: Producto | N42: Zonas (1,2,3) | O42: Remoto | P42: N/A | Q42: LIC-SVE-15 | R42: Unico pago | S42: 300000 | T42: 1 | U42: 1 | V42: COP
A43: Pensemos SASoftware Pensemos SALIC-SVE-16 | B43: LIC-SVE-16Software Pensemos SA | D43: Pensemos SA | E43: LIC-SVE-16 | F43: Software Pensemos SA | G43: Pensemos SA | H43: COP | I43: N/A | J43: Licenciamiento perpetuo SVE módulo planes - usuario adicional | K43: Licencia usuario nombrado adicional | L43: Und | M43: Producto | N43: Zonas (1,2,3) | O43: Remoto | P43: N/A | Q43: LIC-SVE-16 | R43: Unico pago | S43: 300000 | T43: 1 | U43: 1 | V43: COP
A44: Pensemos SASoftware Pensemos SALIC-SVE-17 | B44: LIC-SVE-17Software Pensemos SA | D44: Pensemos SA | E44: LIC-SVE-17 | F44: Software Pensemos SA | G44: Pensemos SA | H44: COP | I44: N/A | J44: Licenciamiento perpetuo SVE módulo portafolio - usuario adicional | K44: Licencia usuario nombrado adicional | L44: Und | M44: Producto | N44: Zonas (1,2,3) | O44: Remoto | P44: N/A | Q44: LIC-SVE-17 | R44: Unico pago | S44: 300000 | T44: 1 | U44: 1 | V44: COP
A45: Pensemos SASoftware Pensemos SALIC-SVE-18 | B45: LIC-SVE-18Software Pensemos SA | D45: Pensemos SA | E45: LIC-SVE-18 | F45: Software Pensemos SA | G45: Pensemos SA | H45: COP | I45: N/A | J45: Licenciamiento perpetuo SVE módulo alineación - usuario adicional | K45: Licencia usuario nombrado adicional | L45: Und | M45: Producto | N45: Zonas (1,2,3) | O45: Remoto | P45: N/A | Q45: LIC-SVE-18 | R45: Unico pago | S45: 400000 | T45: 1 | U45: 1 | V45: COP
A46: Pensemos SASoftware Pensemos SALIC-SVE-19 | B46: LIC-SVE-19Software Pensemos SA | D46: Pensemos SA | E46: LIC-SVE-19 | F46: Software Pensemos SA | G46: Pensemos SA | H46: COP | I46: N/A | J46: Licenciamiento perpetuo SVE módulo BSC - usuario adicional | K46: Licencia usuario nombrado adicional | L46: Und | M46: Producto | N46: Zonas (1,2,3) | O46: Remoto | P46: N/A | Q46: LIC-SVE-19 | R46: Unico pago | S46: 400000 | T46: 1 | U46: 1 | V46: COP
A47: Pensemos SASoftware Pensemos SALIC-SVE-20 | B47: LIC-SVE-20Software Pensemos SA | D47: Pensemos SA | E47: LIC-SVE-20 | F47: Software Pensemos SA | G47: Pensemos SA | H47: COP | I47: N/A | J47: Licenciamiento perpetuo SVE módulo reuniones - usuario adicional | K47: Licencia usuario nombrado adicional | L47: Und | M47: Producto | N47: Zonas (1,2,3) | O47: Remoto | P47: N/A | Q47: LIC-SVE-20 | R47: Unico pago | S47: 200000 | T47: 1 | U47: 1 | V47: COP
A48: Pensemos SASoftware Pensemos SALIC-SVE-21 | B48: LIC-SVE-21Software Pensemos SA | D48: Pensemos SA | E48: LIC-SVE-21 | F48: Software Pensemos SA | G48: Pensemos SA | H48: COP | I48: N/A | J48: Licenciamiento perpetuo SVE módulo eventos y decisiones - usuario adicional | K48: Licencia usuario nombrado adicional | L48: Und | M48: Producto | N48: Zonas (1,2,3) | O48: Remoto | P48: N/A | Q48: LIC-SVE-21 | R48: Unico pago | S48: 100000 | T48: 1 | U48: 1 | V48: COP
A49: Pensemos SASoftware Pensemos SALIC-SVE-22 | B49: LIC-SVE-22Software Pensemos SA | D49: Pensemos SA | E49: LIC-SVE-22 | F49: Software Pensemos SA | G49: Pensemos SA | H49: COP | I49: N/A | J49: Licenciamiento perpetuo SVE módulo compromisos - usuario adicional | K49: Licencia usuario nombrado adicional | L49: Und | M49: Producto | N49: Zonas (1,2,3) | O49: Remoto | P49: N/A | Q49: LIC-SVE-22 | R49: Unico pago | S49: 100000 | T49: 1 | U49: 1 | V49: COP
A50: =D50&F50&E50 -> Pensemos SASoftware Pensemos SALIC-SVE-23 | B50: =E50&F50 -> LIC-SVE-23Software Pensemos SA | D50: Pensemos SA | E50: LIC-SVE-23 | F50: Software Pensemos SA | G50: =D50 -> Pensemos SA | H50: COP | I50: N/A | J50: Licenciamiento perpetuo SVE módulo documentos - usuario adicional | K50: Licencia usuario nombrado adicional | L50: Und | M50: Producto | N50: Zonas (1,2,3) | O50: Remoto | P50: N/A | Q50: =+E50 -> LIC-SVE-23 | R50: Unico pago | S50: 200000 | T50: 1 | U50: 1 | V50: COP
A51: Pensemos SASoftware Pensemos SALIC-SVE-24 | B51: LIC-SVE-24Software Pensemos SA | D51: Pensemos SA | E51: LIC-SVE-24 | F51: Software Pensemos SA | G51: Pensemos SA | H51: COP | I51: N/A | J51: Licenciamiento perpetuo SVE módulo mejoras - usuario adicional | K51: Licencia usuario nombrado adicional | L51: Und | M51: Producto | N51: Zonas (1,2,3) | O51: Remoto | P51: N/A | Q51: LIC-SVE-24 | R51: Unico pago | S51: 300000 | T51: 1 | U51: 1 | V51: COP
A52: Pensemos SASoftware Pensemos SALIC-SVE-25 | B52: LIC-SVE-25Software Pensemos SA | D52: Pensemos SA | E52: LIC-SVE-25 | F52: Software Pensemos SA | G52: Pensemos SA | H52: COP | I52: N/A | J52: Licenciamiento perpetuo SVE módulo verificaciones - usuario adicional | K52: Licencia usuario nombrado adicional | L52: Und | M52: Producto | N52: Zonas (1,2,3) | O52: Remoto | P52: N/A | Q52: LIC-SVE-25 | R52: Unico pago | S52: 200000 | T52: 1 | U52: 1 | V52: COP
A53: Pensemos SASoftware Pensemos SALIC-SVE-26 | B53: LIC-SVE-26Software Pensemos SA | D53: Pensemos SA | E53: LIC-SVE-26 | F53: Software Pensemos SA | G53: Pensemos SA | H53: COP | I53: N/A | J53: Licenciamiento perpetuo SVE módulo riesgos - usuario adicional | K53: Licencia usuario nombrado adicional | L53: Und | M53: Producto | N53: Zonas (1,2,3) | O53: Remoto | P53: N/A | Q53: LIC-SVE-26 | R53: Unico pago | S53: 300000 | T53: 1 | U53: 1 | V53: COP
A54: Pensemos SASoftware Pensemos SALIC-SVE-27 | B54: LIC-SVE-27Software Pensemos SA | D54: Pensemos SA | E54: LIC-SVE-27 | F54: Software Pensemos SA | G54: Pensemos SA | H54: COP | I54: N/A | J54: Licenciamiento perpetuo SVE módulo SST - hasta 100 trabajadores | K54: Licencia Servidor | L54: Und | M54: Producto | N54: Zonas (1,2,3) | O54: Remoto | P54: N/A | Q54: LIC-SVE-27 | R54: Unico pago | S54: 10000000 | T54: 1 | U54: 1 | V54: COP
A55: Pensemos SASoftware Pensemos SALIC-SVE-28 | B55: LIC-SVE-28Software Pensemos SA | D55: Pensemos SA | E55: LIC-SVE-28 | F55: Software Pensemos SA | G55: Pensemos SA | H55: COP | I55: N/A | J55: Licenciamiento perpetuo SVE módulo SST - trabajador adicional | K55: Licencia trabajador adicional | L55: Und | M55: Producto | N55: Zonas (1,2,3) | O55: Remoto | P55: N/A | Q55: LIC-SVE-28 | R55: Unico pago | S55: 80000 | T55: 1 | U55: 1 | V55: COP
A56: Pensemos SASoftware Pensemos SALIC-SVE-29 | B56: LIC-SVE-29Software Pensemos SA | D56: Pensemos SA | E56: LIC-SVE-29 | F56: Software Pensemos SA | G56: Pensemos SA | H56: COP | I56: N/A | J56: Licenciamiento perpetuo SVE módulo Seguridad de la Información - hasta 100 trabajadores | K56: Licencia Servidor | L56: Und | M56: Producto | N56: Zonas (1,2,3) | O56: Remoto | P56: N/A | Q56: LIC-SVE-29 | R56: Unico pago | S56: 8000000 | T56: 1 | U56: 1 | V56: COP
A57: Pensemos SASoftware Pensemos SALIC-SVE-30 | B57: LIC-SVE-30Software Pensemos SA | D57: Pensemos SA | E57: LIC-SVE-30 | F57: Software Pensemos SA | G57: Pensemos SA | H57: COP | I57: N/A | J57: Licenciamiento perpetuo SVE módulo Seguridad de la Información - trabajador adicional | K57: Licencia trabajador adicional | L57: Und | M57: Producto | N57: Zonas (1,2,3) | O57: Remoto | P57: N/A | Q57: LIC-SVE-30 | R57: Unico pago | S57: 64000 | T57: 1 | U57: 1 | V57: COP
A58: Pensemos SASoftware Pensemos SALIC-SVE-31 | B58: LIC-SVE-31Software Pensemos SA | D58: Pensemos SA | E58: LIC-SVE-31 | F58: Software Pensemos SA | G58: Pensemos SA | H58: COP | I58: N/A | J58: Licenciamiento perpetuo SVE módulo Ambiental - hasta 100 trabajadores | K58: Licencia Servidor | L58: Und | M58: Producto | N58: Zonas (1,2,3) | O58: Remoto | P58: N/A | Q58: LIC-SVE-31 | R58: Unico pago | S58: 6000000 | T58: 1 | U58: 1 | V58: COP
A59: Pensemos SASoftware Pensemos SALIC-SVE-32 | B59: LIC-SVE-32Software Pensemos SA | D59: Pensemos SA | E59: LIC-SVE-32 | F59: Software Pensemos SA | G59: Pensemos SA | H59: COP | I59: N/A | J59: Licenciamiento perpetuo SVE módulo Ambiental - trabajador adicional | K59: Licencia trabajador adicional | L59: Und | M59: Producto | N59: Zonas (1,2,3) | O59: Remoto | P59: N/A | Q59: LIC-SVE-32 | R59: Unico pago | S59: 48000 | T59: 1 | U59: 1 | V59: COP
A60: Pensemos SASoftware Pensemos SASUS-SVE-01 | B60: SUS-SVE-01Software Pensemos SA | D60: Pensemos SA | E60: SUS-SVE-01 | F60: Software Pensemos SA | G60: Pensemos SA | H60: COP | I60: N/A | J60: Suscripción anual SaaS SVE Gestión de la Estrategia | K60: Licencia primeros 10 usuarios nombrados | L60: Und | M60: Producto | N60: Zonas (1,2,3) | O60: Remoto | P60: N/A | Q60: SUS-SVE-01 | R60: Unico pago | S60: 16000000 | T60: 1 | U60: 0 | V60: COP
A61: Pensemos SASoftware Pensemos SASUS-SVE-02 | B61: SUS-SVE-02Software Pensemos SA | D61: Pensemos SA | E61: SUS-SVE-02 | F61: Software Pensemos SA | G61: Pensemos SA | H61: COP | I61: N/A | J61: Suscripción anual SaaS SVE Gestión de la Estrategia - usuario adicional | K61: Licencia usuario nombrado adicional | L61: Und | M61: Producto | N61: Zonas (1,2,3) | O61: Remoto | P61: N/A | Q61: SUS-SVE-02 | R61: Unico pago | S61: 600000 | T61: 1 | U61: 0 | V61: COP
A62: Pensemos SASoftware Pensemos SASUS-SVE-03 | B62: SUS-SVE-03Software Pensemos SA | D62: Pensemos SA | E62: SUS-SVE-03 | F62: Software Pensemos SA | G62: Pensemos SA | H62: COP | I62: N/A | J62: Suscripción anual SaaS SVE Gestión de Calidad | K62: Licencia primeros 10 usuarios nombrados | L62: Und | M62: Producto | N62: Zonas (1,2,3) | O62: Remoto | P62: N/A | Q62: SUS-SVE-03 | R62: Unico pago | S62: 8300000 | T62: 1 | U62: 0 | V62: COP
A63: Pensemos SASoftware Pensemos SASUS-SVE-04 | B63: SUS-SVE-04Software Pensemos SA | D63: Pensemos SA | E63: SUS-SVE-04 | F63: Software Pensemos SA | G63: Pensemos SA | H63: COP | I63: N/A | J63: Suscripción anual SaaS SVE Gestión de Calidad - usuario adicional | K63: Licencia usuario nombrado adicional | L63: Und | M63: Producto | N63: Zonas (1,2,3) | O63: Remoto | P63: N/A | Q63: SUS-SVE-04 | R63: Unico pago | S63: 330000 | T63: 1 | U63: 0 | V63: COP
A64: Pensemos SASoftware Pensemos SASUS-SVE-05 | B64: SUS-SVE-05Software Pensemos SA | D64: Pensemos SA | E64: SUS-SVE-05 | F64: Software Pensemos SA | G64: Pensemos SA | H64: COP | I64: N/A | J64: Suscripción anual SaaS SVE MIPG | K64: Licencia primeros 10 usuarios nombrados | L64: Und | M64: Producto | N64: Zonas (1,2,3) | O64: Remoto | P64: N/A | Q64: SUS-SVE-05 | R64: Unico pago | S64: 16900000 | T64: 1 | U64: 0 | V64: COP
A65: Pensemos SASoftware Pensemos SASUS-SVE-06 | B65: SUS-SVE-06Software Pensemos SA | D65: Pensemos SA | E65: SUS-SVE-06 | F65: Software Pensemos SA | G65: Pensemos SA | H65: COP | I65: N/A | J65: Suscripción anual SaaS SVE MIPG - usuario adicional | K65: Licencia usuario nombrado adicional | L65: Und | M65: Producto | N65: Zonas (1,2,3) | O65: Remoto | P65: N/A | Q65: SUS-SVE-06 | R65: Unico pago | S65: 590000 | T65: 1 | U65: 0 | V65: COP
A66: Pensemos SASoftware Pensemos SASUS-SVE-07 | B66: SUS-SVE-07Software Pensemos SA | D66: Pensemos SA | E66: SUS-SVE-07 | F66: Software Pensemos SA | G66: Pensemos SA | H66: COP | I66: N/A | J66: Suscripción anual SaaS SVE Gestión de Proyectos | K66: Licencia primeros 10 usuarios nombrados | L66: Und | M66: Producto | N66: Zonas (1,2,3) | O66: Remoto | P66: N/A | Q66: SUS-SVE-07 | R66: Unico pago | S66: 13500000 | T66: 1 | U66: 0 | V66: COP
A67: Pensemos SASoftware Pensemos SASUS-SVE-08 | B67: SUS-SVE-08Software Pensemos SA | D67: Pensemos SA | E67: SUS-SVE-08 | F67: Software Pensemos SA | G67: Pensemos SA | H67: COP | I67: N/A | J67: Suscripción anual SaaS SVE Gestión de Proyectos - usuario adicional | K67: Licencia usuario nombrado adicional | L67: Und | M67: Producto | N67: Zonas (1,2,3) | O67: Remoto | P67: N/A | Q67: SUS-SVE-08 | R67: Unico pago | S67: 550000 | T67: 1 | U67: 0 | V67: COP
A68: Pensemos SASoftware Pensemos SASUS-SVE-09 | B68: SUS-SVE-09Software Pensemos SA | D68: Pensemos SA | E68: SUS-SVE-09 | F68: Software Pensemos SA | G68: Pensemos SA | H68: COP | I68: N/A | J68: Suscripción anual SaaS SVE Gestión de Riesgos | K68: Licencia primeros 10 usuarios nombrados | L68: Und | M68: Producto | N68: Zonas (1,2,3) | O68: Remoto | P68: N/A | Q68: SUS-SVE-09 | R68: Unico pago | S68: 8300000 | T68: 1 | U68: 0 | V68: COP
A69: Pensemos SASoftware Pensemos SASUS-SVE-10 | B69: SUS-SVE-10Software Pensemos SA | D69: Pensemos SA | E69: SUS-SVE-10 | F69: Software Pensemos SA | G69: Pensemos SA | H69: COP | I69: N/A | J69: Suscripción anual SaaS SVE Gestión de Riesgos - usuario adicional | K69: Licencia usuario nombrado adicional | L69: Und | M69: Producto | N69: Zonas (1,2,3) | O69: Remoto | P69: N/A | Q69: SUS-SVE-10 | R69: Unico pago | S69: 430000 | T69: 1 | U69: 0 | V69: COP
A70: Pensemos SASoftware Pensemos SASUS-SVE-11 | B70: SUS-SVE-11Software Pensemos SA | D70: Pensemos SA | E70: SUS-SVE-11 | F70: Software Pensemos SA | G70: Pensemos SA | H70: COP | I70: N/A | J70: Suscripción anual SaaS SVE Analítico | K70: Licencia primeros 20 usuarios nombrados | L70: Und | M70: Producto | N70: Zonas (1,2,3) | O70: Remoto | P70: N/A | Q70: SUS-SVE-11 | R70: Unico pago | S70: 19000000 | T70: 1 | U70: 0 | V70: COP
A71: Pensemos SASoftware Pensemos SASUS-SVE-12 | B71: SUS-SVE-12Software Pensemos SA | D71: Pensemos SA | E71: SUS-SVE-12 | F71: Software Pensemos SA | G71: Pensemos SA | H71: COP | I71: N/A | J71: Suscripción anual SaaS SVE Analítico - usuario adicional | K71: Licencia usuario nombrado adicional | L71: Und | M71: Producto | N71: Zonas (1,2,3) | O71: Remoto | P71: N/A | Q71: SUS-SVE-12 | R71: Unico pago | S71: 450000 | T71: 1 | U71: 0 | V71: COP
A72: Pensemos SASoftware Pensemos SASUS-SVE-13 | B72: SUS-SVE-13Software Pensemos SA | D72: Pensemos SA | E72: SUS-SVE-13 | F72: Software Pensemos SA | G72: Pensemos SA | H72: COP | I72: N/A | J72: Suscripción anual SaaS SVE GRC | K72: Licencia primeros 10 usuarios nombrados | L72: Und | M72: Producto | N72: Zonas (1,2,3) | O72: Remoto | P72: N/A | Q72: SUS-SVE-13 | R72: Unico pago | S72: 30000000 | T72: 1 | U72: 0 | V72: COP
A73: Pensemos SASoftware Pensemos SASUS-SVE-14 | B73: SUS-SVE-14Software Pensemos SA | D73: Pensemos SA | E73: SUS-SVE-14 | F73: Software Pensemos SA | G73: Pensemos SA | H73: COP | I73: N/A | J73: Suscripción anual SaaS SVE GRC - usuario adicional | K73: Licencia usuario nombrado adicional | L73: Und | M73: Producto | N73: Zonas (1,2,3) | O73: Remoto | P73: N/A | Q73: SUS-SVE-14 | R73: Unico pago | S73: 900000 | T73: 1 | U73: 0 | V73: COP
A74: Pensemos SASoftware Pensemos SASUS-SVE-15 | B74: SUS-SVE-15Software Pensemos SA | D74: Pensemos SA | E74: SUS-SVE-15 | F74: Software Pensemos SA | G74: Pensemos SA | H74: COP | I74: N/A | J74: Suscripción anual SaaS SVE módulo Indicadores - usuario adicional | K74: Licencia usuario nombrado adicional | L74: Und | M74: Producto | N74: Zonas (1,2,3) | O74: Remoto | P74: N/A | Q74: SUS-SVE-15 | R74: Unico pago | S74: 140000 | T74: 1 | U74: 0 | V74: COP
A75: Pensemos SASoftware Pensemos SASUS-SVE-16 | B75: SUS-SVE-16Software Pensemos SA | D75: Pensemos SA | E75: SUS-SVE-16 | F75: Software Pensemos SA | G75: Pensemos SA | H75: COP | I75: N/A | J75: Suscripción anual SaaS SVE módulo planes - usuario adicional | K75: Licencia usuario nombrado adicional | L75: Und | M75: Producto | N75: Zonas (1,2,3) | O75: Remoto | P75: N/A | Q75: SUS-SVE-16 | R75: Unico pago | S75: 140000 | T75: 1 | U75: 0 | V75: COP
A76: Pensemos SASoftware Pensemos SASUS-SVE-17 | B76: SUS-SVE-17Software Pensemos SA | D76: Pensemos SA | E76: SUS-SVE-17 | F76: Software Pensemos SA | G76: Pensemos SA | H76: COP | I76: N/A | J76: Suscripción anual SaaS SVE módulo portafolio - usuario adicional | K76: Licencia usuario nombrado adicional | L76: Und | M76: Producto | N76: Zonas (1,2,3) | O76: Remoto | P76: N/A | Q76: SUS-SVE-17 | R76: Unico pago | S76: 140000 | T76: 1 | U76: 0 | V76: COP
A77: Pensemos SASoftware Pensemos SASUS-SVE-18 | B77: SUS-SVE-18Software Pensemos SA | D77: Pensemos SA | E77: SUS-SVE-18 | F77: Software Pensemos SA | G77: Pensemos SA | H77: COP | I77: N/A | J77: Suscripción anual SaaS SVE módulo alineación - usuario adicional | K77: Licencia usuario nombrado adicional | L77: Und | M77: Producto | N77: Zonas (1,2,3) | O77: Remoto | P77: N/A | Q77: SUS-SVE-18 | R77: Unico pago | S77: 180000 | T77: 1 | U77: 0 | V77: COP
A78: Pensemos SASoftware Pensemos SASUS-SVE-19 | B78: SUS-SVE-19Software Pensemos SA | D78: Pensemos SA | E78: SUS-SVE-19 | F78: Software Pensemos SA | G78: Pensemos SA | H78: COP | I78: N/A | J78: Suscripción anual SaaS SVE módulo BSC - usuario adicional | K78: Licencia usuario nombrado adicional | L78: Und | M78: Producto | N78: Zonas (1,2,3) | O78: Remoto | P78: N/A | Q78: SUS-SVE-19 | R78: Unico pago | S78: 180000 | T78: 1 | U78: 0 | V78: COP
A79: Pensemos SASoftware Pensemos SASUS-SVE-20 | B79: SUS-SVE-20Software Pensemos SA | D79: Pensemos SA | E79: SUS-SVE-20 | F79: Software Pensemos SA | G79: Pensemos SA | H79: COP | I79: N/A | J79: Suscripción anual SaaS SVE módulo reuniones - usuario adicional | K79: Licencia usuario nombrado adicional | L79: Und | M79: Producto | N79: Zonas (1,2,3) | O79: Remoto | P79: N/A | Q79: SUS-SVE-20 | R79: Unico pago | S79: 100000 | T79: 1 | U79: 0 | V79: COP
A80: Pensemos SASoftware Pensemos SASUS-SVE-21 | B80: SUS-SVE-21Software Pensemos SA | D80: Pensemos SA | E80: SUS-SVE-21 | F80: Software Pensemos SA | G80: Pensemos SA | H80: COP | I80: N/A | J80: Suscripción anual SaaS SVE módulo eventos y decisiones - usuario adicional | K80: Licencia usuario nombrado adicional | L80: Und | M80: Producto | N80: Zonas (1,2,3) | O80: Remoto | P80: N/A | Q80: SUS-SVE-21 | R80: Unico pago | S80: 60000 | T80: 1 | U80: 0 | V80: COP
A81: Pensemos SASoftware Pensemos SASUS-SVE-22 | B81: SUS-SVE-22Software Pensemos SA | D81: Pensemos SA | E81: SUS-SVE-22 | F81: Software Pensemos SA | G81: Pensemos SA | H81: COP | I81: N/A | J81: Suscripción anual SaaS SVE módulo compromisos - usuario adicional | K81: Licencia usuario nombrado adicional | L81: Und | M81: Producto | N81: Zonas (1,2,3) | O81: Remoto | P81: N/A | Q81: SUS-SVE-22 | R81: Unico pago | S81: 60000 | T81: 1 | U81: 0 | V81: COP
A82: Pensemos SASoftware Pensemos SASUS-SVE-23 | B82: SUS-SVE-23Software Pensemos SA | D82: Pensemos SA | E82: SUS-SVE-23 | F82: Software Pensemos SA | G82: Pensemos SA | H82: COP | I82: N/A | J82: Suscripción anual SaaS SVE módulo documentos - usuario adicional | K82: Licencia usuario nombrado adicional | L82: Und | M82: Producto | N82: Zonas (1,2,3) | O82: Remoto | P82: N/A | Q82: SUS-SVE-23 | R82: Unico pago | S82: 100000 | T82: 1 | U82: 0 | V82: COP
A83: Pensemos SASoftware Pensemos SASUS-SVE-24 | B83: SUS-SVE-24Software Pensemos SA | D83: Pensemos SA | E83: SUS-SVE-24 | F83: Software Pensemos SA | G83: Pensemos SA | H83: COP | I83: N/A | J83: Suscripción anual SaaS SVE módulo mejoras - usuario adicional | K83: Licencia usuario nombrado adicional | L83: Und | M83: Producto | N83: Zonas (1,2,3) | O83: Remoto | P83: N/A | Q83: SUS-SVE-24 | R83: Unico pago | S83: 140000 | T83: 1 | U83: 0 | V83: COP
A84: Pensemos SASoftware Pensemos SASUS-SVE-25 | B84: SUS-SVE-25Software Pensemos SA | D84: Pensemos SA | E84: SUS-SVE-25 | F84: Software Pensemos SA | G84: Pensemos SA | H84: COP | I84: N/A | J84: Suscripción anual SaaS SVE módulo verificaciones - usuario adicional | K84: Licencia usuario nombrado adicional | L84: Und | M84: Producto | N84: Zonas (1,2,3) | O84: Remoto | P84: N/A | Q84: SUS-SVE-25 | R84: Unico pago | S84: 100000 | T84: 1 | U84: 0 | V84: COP
A85: Pensemos SASoftware Pensemos SASUS-SVE-26 | B85: SUS-SVE-26Software Pensemos SA | D85: Pensemos SA | E85: SUS-SVE-26 | F85: Software Pensemos SA | G85: Pensemos SA | H85: COP | I85: N/A | J85: Suscripción anual SaaS SVE módulo riesgos - usuario adicional | K85: Licencia usuario nombrado adicional | L85: Und | M85: Producto | N85: Zonas (1,2,3) | O85: Remoto | P85: N/A | Q85: SUS-SVE-26 | R85: Unico pago | S85: 140000 | T85: 1 | U85: 0 | V85: COP
A86: Pensemos SASoftware Pensemos SASUS-SVE-27 | B86: SUS-SVE-27Software Pensemos SA | D86: Pensemos SA | E86: SUS-SVE-27 | F86: Software Pensemos SA | G86: Pensemos SA | H86: COP | I86: N/A | J86: Suscripción anual SaaS SVE módulo SST - hasta 100 trabajadores | K86: Licencia Servidor | L86: Und | M86: Producto | N86: Zonas (1,2,3) | O86: Remoto | P86: N/A | Q86: SUS-SVE-27 | R86: Unico pago | S86: 4500000 | T86: 1 | U86: 1 | V86: COP
A87: Pensemos SASoftware Pensemos SASUS-SVE-28 | B87: SUS-SVE-28Software Pensemos SA | D87: Pensemos SA | E87: SUS-SVE-28 | F87: Software Pensemos SA | G87: Pensemos SA | H87: COP | I87: N/A | J87: Suscripción anual SaaS SVE módulo SST - trabajador adicional | K87: Licencia trabajador adicional | L87: Und | M87: Producto | N87: Zonas (1,2,3) | O87: Remoto | P87: N/A | Q87: SUS-SVE-28 | R87: Unico pago | S87: 40000 | T87: 1 | U87: 1 | V87: COP
A88: Pensemos SASoftware Pensemos SASUS-SVE-29 | B88: SUS-SVE-29Software Pensemos SA | D88: Pensemos SA | E88: SUS-SVE-29 | F88: Software Pensemos SA | G88: Pensemos SA | H88: COP | I88: N/A | J88: Suscripción anual SaaS SVE módulo Seguridad de la Información - hasta 100 trabajadores | K88: Licencia Servidor | L88: Und | M88: Producto | N88: Zonas (1,2,3) | O88: Remoto | P88: N/A | Q88: SUS-SVE-29 | R88: Unico pago | S88: 3700000 | T88: 1 | U88: 1 | V88: COP
A89: Pensemos SASoftware Pensemos SASUS-SVE-30 | B89: SUS-SVE-30Software Pensemos SA | D89: Pensemos SA | E89: SUS-SVE-30 | F89: Software Pensemos SA | G89: Pensemos SA | H89: COP | I89: N/A | J89: Suscripción anual SaaS SVE módulo Seguridad de la Información - trabajador adicional | K89: Licencia trabajador adicional | L89: Und | M89: Producto | N89: Zonas (1,2,3) | O89: Remoto | P89: N/A | Q89: SUS-SVE-30 | R89: Unico pago | S89: 34000 | T89: 1 | U89: 1 | V89: COP
A90: Pensemos SASoftware Pensemos SASUS-SVE-31 | B90: SUS-SVE-31Software Pensemos SA | D90: Pensemos SA | E90: SUS-SVE-31 | F90: Software Pensemos SA | G90: Pensemos SA | H90: COP | I90: N/A | J90: Suscripción anual SaaS SVE módulo Ambiental - hasta 100 trabajadores | K90: Licencia Servidor | L90: Und | M90: Producto | N90: Zonas (1,2,3) | O90: Remoto | P90: N/A | Q90: SUS-SVE-31 | R90: Unico pago | S90: 2900000 | T90: 1 | U90: 1 | V90: COP
A91: Pensemos SASoftware Pensemos SASUS-SVE-32 | B91: SUS-SVE-32Software Pensemos SA | D91: Pensemos SA | E91: SUS-SVE-32 | F91: Software Pensemos SA | G91: Pensemos SA | H91: COP | I91: N/A | J91: Suscripción anual SaaS SVE módulo Ambiental - trabajador adicional | K91: Licencia trabajador adicional | L91: Und | M91: Producto | N91: Zonas (1,2,3) | O91: Remoto | P91: N/A | Q91: SUS-SVE-32 | R91: Unico pago | S91: 26000 | T91: 1 | U91: 1 | V91: COP
A92: Pensemos SASoftware Pensemos SAAYM-SVE-01 | B92: AYM-SVE-01Software Pensemos SA | D92: Pensemos SA | E92: AYM-SVE-01 | F92: Software Pensemos SA | G92: Pensemos SA | H92: COP | I92: N/A | J92: Actualización y mantenimiento anual de SVE Gestión de la Estrategia (por 10 usuarios) | K92: Año | L92: Und | M92: Servicio | N92: Zonas (1,2,3) | O92: Remoto | P92: N/A | Q92: AYM-SVE-01 | R92: Unico pago | S92: 7800000 | T92: 1 | U92: 1 | V92: COP
A93: Pensemos SASoftware Pensemos SAAYM-SVE-02 | B93: AYM-SVE-02Software Pensemos SA | D93: Pensemos SA | E93: AYM-SVE-02 | F93: Software Pensemos SA | G93: Pensemos SA | H93: COP | I93: N/A | J93: Actualización y mantenimiento anual de SVE Gestión de la Estrategia (por usuario adicional) | K93: Licencia usuario nombrado adicional | L93: Und | M93: Producto | N93: Zonas (1,2,3) | O93: Remoto | P93: N/A | Q93: AYM-SVE-02 | R93: Unico pago | S93: 220000 | T93: 1 | U93: 1 | V93: COP
A94: Pensemos SASoftware Pensemos SAAYM-SVE-03 | B94: AYM-SVE-03Software Pensemos SA | D94: Pensemos SA | E94: AYM-SVE-03 | F94: Software Pensemos SA | G94: Pensemos SA | H94: COP | I94: N/A | J94: Actualización y mantenimiento anual de SVE Gestión de Calidad (por 10 usuarios) | K94: Licencia primeros 10 usuarios nombrados | L94: Und | M94: Producto | N94: Zonas (1,2,3) | O94: Remoto | P94: N/A | Q94: AYM-SVE-03 | R94: Unico pago | S94: 3600000 | T94: 1 | U94: 1 | V94: COP
A95: Pensemos SASoftware Pensemos SAAYM-SVE-04 | B95: AYM-SVE-04Software Pensemos SA | D95: Pensemos SA | E95: AYM-SVE-04 | F95: Software Pensemos SA | G95: Pensemos SA | H95: COP | I95: N/A | J95: Actualización y mantenimiento anual de SVE Gestión de Calidad (por usuario adicional) | K95: Licencia usuario nombrado adicional | L95: Und | M95: Producto | N95: Zonas (1,2,3) | O95: Remoto | P95: N/A | Q95: AYM-SVE-04 | R95: Unico pago | S95: 120000 | T95: 1 | U95: 1 | V95: COP
A96: Pensemos SASoftware Pensemos SAAYM-SVE-05 | B96: AYM-SVE-05Software Pensemos SA | D96: Pensemos SA | E96: AYM-SVE-05 | F96: Software Pensemos SA | G96: Pensemos SA | H96: COP | I96: N/A | J96: Actualización y mantenimiento anual de SVE MIPG (por 10 usuarios) | K96: Licencia primeros 10 usuarios nombrados | L96: Und | M96: Producto | N96: Zonas (1,2,3) | O96: Remoto | P96: N/A | Q96: AYM-SVE-05 | R96: Unico pago | S96: 6300000 | T96: 1 | U96: 1 | V96: COP
A97: Pensemos SASoftware Pensemos SAAYM-SVE-06 | B97: AYM-SVE-06Software Pensemos SA | D97: Pensemos SA | E97: AYM-SVE-06 | F97: Software Pensemos SA | G97: Pensemos SA | H97: COP | I97: N/A | J97: Actualización y mantenimiento anual de SVE MIPG (por usuario adicional) | K97: Licencia usuario nombrado adicional | L97: Und | M97: Producto | N97: Zonas (1,2,3) | O97: Remoto | P97: N/A | Q97: AYM-SVE-06 | R97: Unico pago | S97: 230000 | T97: 1 | U97: 1 | V97: COP
A98: Pensemos SASoftware Pensemos SAAYM-SVE-07 | B98: AYM-SVE-07Software Pensemos SA | D98: Pensemos SA | E98: AYM-SVE-07 | F98: Software Pensemos SA | G98: Pensemos SA | H98: COP | I98: N/A | J98: Actualización y mantenimiento anual de SVE Gestión de Proyectos (por 10 usuarios) | K98: Licencia primeros 10 usuarios nombrados | L98: Und | M98: Producto | N98: Zonas (1,2,3) | O98: Remoto | P98: N/A | Q98: AYM-SVE-07 | R98: Unico pago | S98: 5800000 | T98: 1 | U98: 1 | V98: COP
A99: Pensemos SASoftware Pensemos SAAYM-SVE-08 | B99: AYM-SVE-08Software Pensemos SA | D99: Pensemos SA | E99: AYM-SVE-08 | F99: Software Pensemos SA | G99: Pensemos SA | H99: COP | I99: N/A | J99: Actualización y mantenimiento anual de SVE Gestión de Proyectos (por usuario adicional) | K99: Licencia usuario nombrado adicional | L99: Und | M99: Producto | N99: Zonas (1,2,3) | O99: Remoto | P99: N/A | Q99: AYM-SVE-08 | R99: Unico pago | S99: 180000 | T99: 1 | U99: 1 | V99: COP
A100: Pensemos SASoftware Pensemos SAAYM-SVE-09 | B100: AYM-SVE-09Software Pensemos SA | D100: Pensemos SA | E100: AYM-SVE-09 | F100: Software Pensemos SA | G100: Pensemos SA | H100: COP | I100: N/A | J100: Actualización y mantenimiento anual de SVE Gestión de Riesgos (por 10 usuarios) | K100: Licencia primeros 10 usuarios nombrados | L100: Und | M100: Producto | N100: Zonas (1,2,3) | O100: Remoto | P100: N/A | Q100: AYM-SVE-09 | R100: Unico pago | S100: 3500000 | T100: 1 | U100: 1 | V100: COP
A101: Pensemos SASoftware Pensemos SAAYM-SVE-10 | B101: AYM-SVE-10Software Pensemos SA | D101: Pensemos SA | E101: AYM-SVE-10 | F101: Software Pensemos SA | G101: Pensemos SA | H101: COP | I101: N/A | J101: Actualización y mantenimiento anual de SVE Gestión de Riesgos (por usuario adicional) | K101: Licencia usuario nombrado adicional | L101: Und | M101: Producto | N101: Zonas (1,2,3) | O101: Remoto | P101: N/A | Q101: AYM-SVE-10 | R101: Unico pago | S101: 150000 | T101: 1 | U101: 1 | V101: COP
A102: Pensemos SASoftware Pensemos SAAYM-SVE-11 | B102: AYM-SVE-11Software Pensemos SA | D102: Pensemos SA | E102: AYM-SVE-11 | F102: Software Pensemos SA | G102: Pensemos SA | H102: COP | I102: N/A | J102: Actualización y mantenimiento anual de SVE Analítico (por 20 usuarios) | K102: Licencia primeros 20 usuarios nombrados | L102: Und | M102: Producto | N102: Zonas (1,2,3) | O102: Remoto | P102: N/A | Q102: AYM-SVE-11 | R102: Unico pago | S102: 8400000 | T102: 1 | U102: 1 | V102: COP
A103: Pensemos SASoftware Pensemos SAAYM-SVE-12 | B103: AYM-SVE-12Software Pensemos SA | D103: Pensemos SA | E103: AYM-SVE-12 | F103: Software Pensemos SA | G103: Pensemos SA | H103: COP | I103: N/A | J103: Actualización y mantenimiento anual de SVE Analítico (por usuario adicional) | K103: Licencia usuario nombrado adicional | L103: Und | M103: Producto | N103: Zonas (1,2,3) | O103: Remoto | P103: N/A | Q103: AYM-SVE-12 | R103: Unico pago | S103: 160000 | T103: 1 | U103: 1 | V103: COP
A104: Pensemos SASoftware Pensemos SAAYM-SVE-13 | B104: AYM-SVE-13Software Pensemos SA | D104: Pensemos SA | E104: AYM-SVE-13 | F104: Software Pensemos SA | G104: Pensemos SA | H104: COP | I104: N/A | J104: Actualización y mantenimiento anual de SVE GRC (por 10 usuarios) | K104: Licencia primeros 10 usuarios nombrados | L104: Und | M104: Producto | N104: Zonas (1,2,3) | O104: Remoto | P104: N/A | Q104: AYM-SVE-13 | R104: Unico pago | S104: 9400000 | T104: 1 | U104: 1 | V104: COP
A105: Pensemos SASoftware Pensemos SAAYM-SVE-14 | B105: AYM-SVE-14Software Pensemos SA | D105: Pensemos SA | E105: AYM-SVE-14 | F105: Software Pensemos SA | G105: Pensemos SA | H105: COP | I105: N/A | J105: Actualización y mantenimiento anual de SVE GRC (por usuario adicional) | K105: Licencia usuario nombrado adicional | L105: Und | M105: Producto | N105: Zonas (1,2,3) | O105: Remoto | P105: N/A | Q105: AYM-SVE-14 | R105: Unico pago | S105: 340000 | T105: 1 | U105: 1 | V105: COP
A106: Pensemos SASoftware Pensemos SAAYM-SVE-15 | B106: AYM-SVE-15Software Pensemos SA | D106: Pensemos SA | E106: AYM-SVE-15 | F106: Software Pensemos SA | G106: Pensemos SA | H106: COP | I106: N/A | J106: Actualización y mantenimiento anual de SVE módulo Indicadores (por usuario adicional) | K106: Licencia usuario nombrado adicional | L106: Und | M106: Producto | N106: Zonas (1,2,3) | O106: Remoto | P106: N/A | Q106: AYM-SVE-15 | R106: Unico pago | S106: 60000 | T106: 1 | U106: 1 | V106: COP
A107: Pensemos SASoftware Pensemos SAAYM-SVE-16 | B107: AYM-SVE-16Software Pensemos SA | D107: Pensemos SA | E107: AYM-SVE-16 | F107: Software Pensemos SA | G107: Pensemos SA | H107: COP | I107: N/A | J107: Actualización y mantenimiento anual de SVE módulo planes (por usuario adicional) | K107: Licencia usuario nombrado adicional | L107: Und | M107: Producto | N107: Zonas (1,2,3) | O107: Remoto | P107: N/A | Q107: AYM-SVE-16 | R107: Unico pago | S107: 60000 | T107: 1 | U107: 1 | V107: COP
A108: Pensemos SASoftware Pensemos SAAYM-SVE-17 | B108: AYM-SVE-17Software Pensemos SA | D108: Pensemos SA | E108: AYM-SVE-17 | F108: Software Pensemos SA | G108: Pensemos SA | H108: COP | I108: N/A | J108: Actualización y mantenimiento anual de SVE módulo portafolio (por usuario adicional) | K108: Licencia usuario nombrado adicional | L108: Und | M108: Producto | N108: Zonas (1,2,3) | O108: Remoto | P108: N/A | Q108: AYM-SVE-17 | R108: Unico pago | S108: 60000 | T108: 1 | U108: 1 | V108: COP
A109: Pensemos SASoftware Pensemos SAAYM-SVE-18 | B109: AYM-SVE-18Software Pensemos SA | D109: Pensemos SA | E109: AYM-SVE-18 | F109: Software Pensemos SA | G109: Pensemos SA | H109: COP | I109: N/A | J109: Actualización y mantenimiento anual de SVE módulo alineación (por usuario adicional) | K109: Licencia usuario nombrado adicional | L109: Und | M109: Producto | N109: Zonas (1,2,3) | O109: Remoto | P109: N/A | Q109: AYM-SVE-18 | R109: Unico pago | S109: 80000 | T109: 1 | U109: 1 | V109: COP
A110: Pensemos SASoftware Pensemos SAAYM-SVE-19 | B110: AYM-SVE-19Software Pensemos SA | D110: Pensemos SA | E110: AYM-SVE-19 | F110: Software Pensemos SA | G110: Pensemos SA | H110: COP | I110: N/A | J110: Actualización y mantenimiento anual de SVE módulo BSC (por usuario adicional) | K110: Licencia usuario nombrado adicional | L110: Und | M110: Producto | N110: Zonas (1,2,3) | O110: Remoto | P110: N/A | Q110: AYM-SVE-19 | R110: Unico pago | S110: 80000 | T110: 1 | U110: 1 | V110: COP
A111: Pensemos SASoftware Pensemos SAAYM-SVE-20 | B111: AYM-SVE-20Software Pensemos SA | D111: Pensemos SA | E111: AYM-SVE-20 | F111: Software Pensemos SA | G111: Pensemos SA | H111: COP | I111: N/A | J111: Actualización y mantenimiento anual de SVE módulo reuniones (por usuario adicional) | K111: Licencia usuario nombrado adicional | L111: Und | M111: Producto | N111: Zonas (1,2,3) | O111: Remoto | P111: N/A | Q111: AYM-SVE-20 | R111: Unico pago | S111: 40000 | T111: 1 | U111: 1 | V111: COP
A112: Pensemos SASoftware Pensemos SAAYM-SVE-21 | B112: AYM-SVE-21Software Pensemos SA | D112: Pensemos SA | E112: AYM-SVE-21 | F112: Software Pensemos SA | G112: Pensemos SA | H112: COP | I112: N/A | J112: Actualización y mantenimiento anual de SVE módulo eventos y decisiones (por usuario adicional) | K112: Licencia usuario nombrado adicional | L112: Und | M112: Producto | N112: Zonas (1,2,3) | O112: Remoto | P112: N/A | Q112: AYM-SVE-21 | R112: Unico pago | S112: 20000 | T112: 1 | U112: 1 | V112: COP
A113: Pensemos SASoftware Pensemos SAAYM-SVE-22 | B113: AYM-SVE-22Software Pensemos SA | D113: Pensemos SA | E113: AYM-SVE-22 | F113: Software Pensemos SA | G113: Pensemos SA | H113: COP | I113: N/A | J113: Actualización y mantenimiento anual de SVE módulo compromisos (por usuario adicional) | K113: Licencia usuario nombrado adicional | L113: Und | M113: Producto | N113: Zonas (1,2,3) | O113: Remoto | P113: N/A | Q113: AYM-SVE-22 | R113: Unico pago | S113: 20000 | T113: 1 | U113: 1 | V113: COP
A114: =D114&F114&E114 -> Pensemos SASoftware Pensemos SAAYM-SVE-23 | B114: =E114&F114 -> AYM-SVE-23Software Pensemos SA | D114: Pensemos SA | E114: AYM-SVE-23 | F114: Software Pensemos SA | G114: =D114 -> Pensemos SA | H114: COP | I114: N/A | J114: Actualización y mantenimiento anual de SVE módulo documentos (por usuario adicional) | K114: Licencia usuario nombrado adicional | L114: Und | M114: Producto | N114: Zonas (1,2,3) | O114: Remoto | P114: N/A | Q114: =+E114 -> AYM-SVE-23 | R114: Unico pago | S114: 40000 | T114: 1 | U114: 1 | V114: COP
A115: Pensemos SASoftware Pensemos SAAYM-SVE-24 | B115: AYM-SVE-24Software Pensemos SA | D115: Pensemos SA | E115: AYM-SVE-24 | F115: Software Pensemos SA | G115: Pensemos SA | H115: COP | I115: N/A | J115: Actualización y mantenimiento anual de SVE módulo mejoras (por usuario adicional) | K115: Licencia usuario nombrado adicional | L115: Und | M115: Producto | N115: Zonas (1,2,3) | O115: Remoto | P115: N/A | Q115: AYM-SVE-24 | R115: Unico pago | S115: 60000 | T115: 1 | U115: 1 | V115: COP
A116: Pensemos SASoftware Pensemos SAAYM-SVE-25 | B116: AYM-SVE-25Software Pensemos SA | D116: Pensemos SA | E116: AYM-SVE-25 | F116: Software Pensemos SA | G116: Pensemos SA | H116: COP | I116: N/A | J116: Actualización y mantenimiento anual de SVE módulo verificaciones (por usuario adicional) | K116: Licencia usuario nombrado adicional | L116: Und | M116: Producto | N116: Zonas (1,2,3) | O116: Remoto | P116: N/A | Q116: AYM-SVE-25 | R116: Unico pago | S116: 40000 | T116: 1 | U116: 1 | V116: COP
A117: Pensemos SASoftware Pensemos SAAYM-SVE-26 | B117: AYM-SVE-26Software Pensemos SA | D117: Pensemos SA | E117: AYM-SVE-26 | F117: Software Pensemos SA | G117: Pensemos SA | H117: COP | I117: N/A | J117: Actualización y mantenimiento anual de SVE módulo riesgos (por usuario adicional) | K117: Licencia usuario nombrado adicional | L117: Und | M117: Producto | N117: Zonas (1,2,3) | O117: Remoto | P117: N/A | Q117: AYM-SVE-26 | R117: Unico pago | S117: 60000 | T117: 1 | U117: 1 | V117: COP
A118: Pensemos SASoftware Pensemos SAAYM-SVE-27 | B118: AYM-SVE-27Software Pensemos SA | D118: Pensemos SA | E118: AYM-SVE-27 | F118: Software Pensemos SA | G118: Pensemos SA | H118: COP | I118: N/A | J118: Actualización y mantenimiento anual de SVE módulo SST ( hasta 100 trabajadores ) | K118: Licencia Servidor | L118: Und | M118: Producto | N118: Zonas (1,2,3) | O118: Remoto | P118: N/A | Q118: AYM-SVE-27 | R118: Unico pago | S118: 2000000 | T118: 1 | U118: 1 | V118: COP
A119: Pensemos SASoftware Pensemos SAAYM-SVE-28 | B119: AYM-SVE-28Software Pensemos SA | D119: Pensemos SA | E119: AYM-SVE-28 | F119: Software Pensemos SA | G119: Pensemos SA | H119: COP | I119: N/A | J119: Actualización y mantenimiento anual de SVE módulo SST (por trabajador adicional) | K119: Licencia trabajador adicional | L119: Und | M119: Producto | N119: Zonas (1,2,3) | O119: Remoto | P119: N/A | Q119: AYM-SVE-28 | R119: Unico pago | S119: 16000 | T119: 1 | U119: 1 | V119: COP
A120: Pensemos SASoftware Pensemos SAAYM-SVE-29 | B120: AYM-SVE-29Software Pensemos SA | D120: Pensemos SA | E120: AYM-SVE-29 | F120: Software Pensemos SA | G120: Pensemos SA | H120: COP | I120: N/A | J120: Actualización y mantenimiento anual de SVE módulo Seguridad de la Información (por hasta 100 trabajadores) | K120: Licencia Servidor | L120: Und | M120: Producto | N120: Zonas (1,2,3) | O120: Remoto | P120: N/A | Q120: AYM-SVE-29 | R120: Unico pago | S120: 1600000 | T120: 1 | U120: 1 | V120: COP
A121: Pensemos SASoftware Pensemos SAAYM-SVE-30 | B121: AYM-SVE-30Software Pensemos SA | D121: Pensemos SA | E121: AYM-SVE-30 | F121: Software Pensemos SA | G121: Pensemos SA | H121: COP | I121: N/A | J121: Actualización y mantenimiento anual de SVE módulo Seguridad de la Información (por trabajador adicional) | K121: Licencia trabajador adicional | L121: Und | M121: Producto | N121: Zonas (1,2,3) | O121: Remoto | P121: N/A | Q121: AYM-SVE-30 | R121: Unico pago | S121: 12800 | T121: 1 | U121: 1 | V121: COP
A122: Pensemos SASoftware Pensemos SAAYM-SVE-31 | B122: AYM-SVE-31Software Pensemos SA | D122: Pensemos SA | E122: AYM-SVE-31 | F122: Software Pensemos SA | G122: Pensemos SA | H122: COP | I122: N/A | J122: Actualización y mantenimiento anual de SVE módulo Ambiental (por hasta 100 trabajadores) | K122: Licencia Servidor | L122: Und | M122: Producto | N122: Zonas (1,2,3) | O122: Remoto | P122: N/A | Q122: AYM-SVE-31 | R122: Unico pago | S122: 1200000 | T122: 1 | U122: 1 | V122: COP
A123: Pensemos SASoftware Pensemos SAAYM-SVE-32 | B123: AYM-SVE-32Software Pensemos SA | D123: Pensemos SA | E123: AYM-SVE-32 | F123: Software Pensemos SA | G123: Pensemos SA | H123: COP | I123: N/A | J123: Actualización y mantenimiento anual de SVE módulo Ambiental (por trabajador adicional) | K123: Licencia trabajador adicional | L123: Und | M123: Producto | N123: Zonas (1,2,3) | O123: Remoto | P123: N/A | Q123: AYM-SVE-32 | R123: Unico pago | S123: 9600 | T123: 1 | U123: 1 | V123: COP
A124: =D124&F124&E124 -> CreangelSoftware IFINDITIF-SEARCH-02-500K | B124: =E124&F124 -> IF-SEARCH-02-500KSoftware IFINDIT | D124: Creangel | E124: IF-SEARCH-02-500K | F124: Software IFINDIT | G124: =D124 -> Creangel | H124: COP | I124: N/A | J124: LICENCIA IFINDIT SEARCH HASTA: 2 FUENTES O 500K DOCS | K124: Suscripción | L124: Und | M124: Producto | N124: Zonas (1,2,3) | O124: Remoto y/o sitio | P124: N/A | Q124: =+E124 -> IF-SEARCH-02-500K | R124: Suscripción anual a la entrega de la licencia | S124: 20833333.33 | T124: 1 | U124: 0 | V124: COP
A125: CreangelSoftware IFINDITIF-SEARCH-02-1M | B125: IF-SEARCH-02-1MSoftware IFINDIT | D125: Creangel | E125: IF-SEARCH-02-1M | F125: Software IFINDIT | G125: Creangel | H125: COP | I125: N/A | J125: LICENCIA IFINDIT SEARCH HASTA: 2 FUENTES O 1M DOCS | K125: Suscripción | L125: Und | M125: Producto | N125: Zonas (1,2,3) | O125: Remoto y/o sitio | P125: N/A | Q125: IF-SEARCH-02-1M | R125: Suscripción anual a la entrega de la licencia | S125: 25000000 | T125: 1 | U125: 0 | V125: COP
A126: CreangelSoftware IFINDITIF-SEARCH-02-2M | B126: IF-SEARCH-02-2MSoftware IFINDIT | D126: Creangel | E126: IF-SEARCH-02-2M | F126: Software IFINDIT | G126: Creangel | H126: COP | I126: N/A | J126: LICENCIA IFINDIT SEARCH HASTA: 2 FUENTES O 2M DOCS | K126: Suscripción | L126: Und | M126: Producto | N126: Zonas (1,2,3) | O126: Remoto y/o sitio | P126: N/A | Q126: IF-SEARCH-02-2M | R126: Suscripción anual a la entrega de la licencia | S126: 29166666.67 | T126: 1 | U126: 0 | V126: COP
A127: CreangelSoftware IFINDITIF-SEARCH-02-5M | B127: IF-SEARCH-02-5MSoftware IFINDIT | D127: Creangel | E127: IF-SEARCH-02-5M | F127: Software IFINDIT | G127: Creangel | H127: COP | I127: N/A | J127: LICENCIA IFINDIT SEARCH HASTA: 2 FUENTES O 5M DOCS | K127: Suscripción | L127: Und | M127: Producto | N127: Zonas (1,2,3) | O127: Remoto y/o sitio | P127: N/A | Q127: IF-SEARCH-02-5M | R127: Suscripción anual a la entrega de la licencia | S127: 33333333.33 | T127: 1 | U127: 0 | V127: COP
A128: CreangelSoftware IFINDITIF-SEARCH-02-10M | B128: IF-SEARCH-02-10MSoftware IFINDIT | D128: Creangel | E128: IF-SEARCH-02-10M | F128: Software IFINDIT | G128: Creangel | H128: COP | I128: N/A | J128: LICENCIA IFINDIT SEARCH HASTA: 2 FUENTES O 10M DOCS | K128: Suscripción | L128: Und | M128: Producto | N128: Zonas (1,2,3) | O128: Remoto y/o sitio | P128: N/A | Q128: IF-SEARCH-02-10M | R128: Suscripción anual a la entrega de la licencia | S128: 37500000 | T128: 1 | U128: 0 | V128: COP
A129: CreangelSoftware IFINDITIF-SEARCH-04-500K | B129: IF-SEARCH-04-500KSoftware IFINDIT | D129: Creangel | E129: IF-SEARCH-04-500K | F129: Software IFINDIT | G129: Creangel | H129: COP | I129: N/A | J129: LICENCIA IFINDIT SEARCH HASTA: 4 FUENTES O 500K DOCS | K129: Suscripción | L129: Und | M129: Producto | N129: Zonas (1,2,3) | O129: Remoto y/o sitio | P129: N/A | Q129: IF-SEARCH-04-500K | R129: Suscripción anual a la entrega de la licencia | S129: 25000000 | T129: 1 | U129: 0 | V129: COP
A130: CreangelSoftware IFINDITIF-SEARCH-04-1M | B130: IF-SEARCH-04-1MSoftware IFINDIT | D130: Creangel | E130: IF-SEARCH-04-1M | F130: Software IFINDIT | G130: Creangel | H130: COP | I130: N/A | J130: LICENCIA IFINDIT SEARCH HASTA: 4 FUENTES O 1M DOCS | K130: Suscripción | L130: Und | M130: Producto | N130: Zonas (1,2,3) | O130: Remoto y/o sitio | P130: N/A | Q130: IF-SEARCH-04-1M | R130: Suscripción anual a la entrega de la licencia | S130: 29166666.67 | T130: 1 | U130: 0 | V130: COP
A131: CreangelSoftware IFINDITIF-SEARCH-04-2M | B131: IF-SEARCH-04-2MSoftware IFINDIT | D131: Creangel | E131: IF-SEARCH-04-2M | F131: Software IFINDIT | G131: Creangel | H131: COP | I131: N/A | J131: LICENCIA IFINDIT SEARCH HASTA: 4 FUENTES O 2M DOCS | K131: Suscripción | L131: Und | M131: Producto | N131: Zonas (1,2,3) | O131: Remoto y/o sitio | P131: N/A | Q131: IF-SEARCH-04-2M | R131: Suscripción anual a la entrega de la licencia | S131: 32500000 | T131: 1 | U131: 0 | V131: COP
A132: CreangelSoftware IFINDITIF-SEARCH-04-5M | B132: IF-SEARCH-04-5MSoftware IFINDIT | D132: Creangel | E132: IF-SEARCH-04-5M | F132: Software IFINDIT | G132: Creangel | H132: COP | I132: N/A | J132: LICENCIA IFINDIT SEARCH HASTA: 4 FUENTES O 5M DOCS | K132: Suscripción | L132: Und | M132: Producto | N132: Zonas (1,2,3) | O132: Remoto y/o sitio | P132: N/A | Q132: IF-SEARCH-04-5M | R132: Suscripción anual a la entrega de la licencia | S132: 35833333.33 | T132: 1 | U132: 0 | V132: COP
A133: CreangelSoftware IFINDITIF-SEARCH-04-10M | B133: IF-SEARCH-04-10MSoftware IFINDIT | D133: Creangel | E133: IF-SEARCH-04-10M | F133: Software IFINDIT | G133: Creangel | H133: COP | I133: N/A | J133: LICENCIA IFINDIT SEARCH HASTA: 4 FUENTES O 10M DOCS | K133: Suscripción | L133: Und | M133: Producto | N133: Zonas (1,2,3) | O133: Remoto y/o sitio | P133: N/A | Q133: IF-SEARCH-04-10M | R133: Suscripción anual a la entrega de la licencia | S133: 39166666.67 | T133: 1 | U133: 0 | V133: COP
A134: CreangelSoftware IFINDITIF-SEARCH-06-500K | B134: IF-SEARCH-06-500KSoftware IFINDIT | D134: Creangel | E134: IF-SEARCH-06-500K | F134: Software IFINDIT | G134: Creangel | H134: COP | I134: N/A | J134: LICENCIA IFINDIT SEARCH HASTA: 6 FUENTES O 500K DOCS | K134: Suscripción | L134: Und | M134: Producto | N134: Zonas (1,2,3) | O134: Remoto y/o sitio | P134: N/A | Q134: IF-SEARCH-06-500K | R134: Suscripción anual a la entrega de la licencia | S134: 28333333.33 | T134: 1 | U134: 0 | V134: COP
A135: CreangelSoftware IFINDITIF-SEARCH-06-1M | B135: IF-SEARCH-06-1MSoftware IFINDIT | D135: Creangel | E135: IF-SEARCH-06-1M | F135: Software IFINDIT | G135: Creangel | H135: COP | I135: N/A | J135: LICENCIA IFINDIT SEARCH HASTA: 6 FUENTES O 1M DOCS | K135: Suscripción | L135: Und | M135: Producto | N135: Zonas (1,2,3) | O135: Remoto y/o sitio | P135: N/A | Q135: IF-SEARCH-06-1M | R135: Suscripción anual a la entrega de la licencia | S135: 32500000 | T135: 1 | U135: 0 | V135: COP
A136: CreangelSoftware IFINDITIF-SEARCH-06-2M | B136: IF-SEARCH-06-2MSoftware IFINDIT | D136: Creangel | E136: IF-SEARCH-06-2M | F136: Software IFINDIT | G136: Creangel | H136: COP | I136: N/A | J136: LICENCIA IFINDIT SEARCH HASTA: 6 FUENTES O 2M DOCS | K136: Suscripción | L136: Und | M136: Producto | N136: Zonas (1,2,3) | O136: Remoto y/o sitio | P136: N/A | Q136: IF-SEARCH-06-2M | R136: Suscripción anual a la entrega de la licencia | S136: 35833333.33 | T136: 1 | U136: 0 | V136: COP
A137: CreangelSoftware IFINDITIF-SEARCH-06-5M | B137: IF-SEARCH-06-5MSoftware IFINDIT | D137: Creangel | E137: IF-SEARCH-06-5M | F137: Software IFINDIT | G137: Creangel | H137: COP | I137: N/A | J137: LICENCIA IFINDIT SEARCH HASTA: 6 FUENTES O 5M DOCS | K137: Suscripción | L137: Und | M137: Producto | N137: Zonas (1,2,3) | O137: Remoto y/o sitio | P137: N/A | Q137: IF-SEARCH-06-5M | R137: Suscripción anual a la entrega de la licencia | S137: 39166666.67 | T137: 1 | U137: 0 | V137: COP
A138: CreangelSoftware IFINDITIF-SEARCH-06-10M | B138: IF-SEARCH-06-10MSoftware IFINDIT | D138: Creangel | E138: IF-SEARCH-06-10M | F138: Software IFINDIT | G138: Creangel | H138: COP | I138: N/A | J138: LICENCIA IFINDIT SEARCH HASTA: 6 FUENTES O 10M DOCS | K138: Suscripción | L138: Und | M138: Producto | N138: Zonas (1,2,3) | O138: Remoto y/o sitio | P138: N/A | Q138: IF-SEARCH-06-10M | R138: Suscripción anual a la entrega de la licencia | S138: 42500000 | T138: 1 | U138: 0 | V138: COP
A139: CreangelSoftware IFINDITIF-SEARCH-08-1M | B139: IF-SEARCH-08-1MSoftware IFINDIT | D139: Creangel | E139: IF-SEARCH-08-1M | F139: Software IFINDIT | G139: Creangel | H139: COP | I139: N/A | J139: LICENCIA IFINDIT SEARCH HASTA: 8 FUENTES O 1M DOCS | K139: Suscripción | L139: Und | M139: Producto | N139: Zonas (1,2,3) | O139: Remoto y/o sitio | P139: N/A | Q139: IF-SEARCH-08-1M | R139: Suscripción anual a la entrega de la licencia | S139: 34166666.67 | T139: 1 | U139: 0 | V139: COP
A140: CreangelSoftware IFINDITIF-SEARCH-08-2M | B140: IF-SEARCH-08-2MSoftware IFINDIT | D140: Creangel | E140: IF-SEARCH-08-2M | F140: Software IFINDIT | G140: Creangel | H140: COP | I140: N/A | J140: LICENCIA IFINDIT SEARCH HASTA: 8 FUENTES O 2M DOCS | K140: Suscripción | L140: Und | M140: Producto | N140: Zonas (1,2,3) | O140: Remoto y/o sitio | P140: N/A | Q140: IF-SEARCH-08-2M | R140: Suscripción anual a la entrega de la licencia | S140: 36666666.67 | T140: 1 | U140: 0 | V140: COP
A141: CreangelSoftware IFINDITIF-SEARCH-08-5M | B141: IF-SEARCH-08-5MSoftware IFINDIT | D141: Creangel | E141: IF-SEARCH-08-5M | F141: Software IFINDIT | G141: Creangel | H141: COP | I141: N/A | J141: LICENCIA IFINDIT SEARCH HASTA: 8 FUENTES O 5M DOCS | K141: Suscripción | L141: Und | M141: Producto | N141: Zonas (1,2,3) | O141: Remoto y/o sitio | P141: N/A | Q141: IF-SEARCH-08-5M | R141: Suscripción anual a la entrega de la licencia | S141: 39166666.67 | T141: 1 | U141: 0 | V141: COP
A142: CreangelSoftware IFINDITIF-SEARCH-08-10M | B142: IF-SEARCH-08-10MSoftware IFINDIT | D142: Creangel | E142: IF-SEARCH-08-10M | F142: Software IFINDIT | G142: Creangel | H142: COP | I142: N/A | J142: LICENCIA IFINDIT SEARCH HASTA: 8 FUENTES O 10M DOCS | K142: Suscripción | L142: Und | M142: Producto | N142: Zonas (1,2,3) | O142: Remoto y/o sitio | P142: N/A | Q142: IF-SEARCH-08-10M | R142: Suscripción anual a la entrega de la licencia | S142: 41666666.67 | T142: 1 | U142: 0 | V142: COP
A143: CreangelSoftware IFINDITIF-SEARCH-08-20M | B143: IF-SEARCH-08-20MSoftware IFINDIT | D143: Creangel | E143: IF-SEARCH-08-20M | F143: Software IFINDIT | G143: Creangel | H143: COP | I143: N/A | J143: LICENCIA IFINDIT SEARCH HASTA: 8 FUENTES O 20M DOCS | K143: Suscripción | L143: Und | M143: Producto | N143: Zonas (1,2,3) | O143: Remoto y/o sitio | P143: N/A | Q143: IF-SEARCH-08-20M | R143: Suscripción anual a la entrega de la licencia | S143: 45833333.33 | T143: 1 | U143: 0 | V143: COP
A144: CreangelSoftware IFINDITIF-SEARCH-10-2M | B144: IF-SEARCH-10-2MSoftware IFINDIT | D144: Creangel | E144: IF-SEARCH-10-2M | F144: Software IFINDIT | G144: Creangel | H144: COP | I144: N/A | J144: LICENCIA IFINDIT SEARCH HASTA: 10 FUENTES O 2M DOCS | K144: Suscripción | L144: Und | M144: Producto | N144: Zonas (1,2,3) | O144: Remoto y/o sitio | P144: N/A | Q144: IF-SEARCH-10-2M | R144: Suscripción anual a la entrega de la licencia | S144: 39166666.67 | T144: 1 | U144: 0 | V144: COP
A145: CreangelSoftware IFINDITIF-SEARCH-10-5M | B145: IF-SEARCH-10-5MSoftware IFINDIT | D145: Creangel | E145: IF-SEARCH-10-5M | F145: Software IFINDIT | G145: Creangel | H145: COP | I145: N/A | J145: LICENCIA IFINDIT SEARCH HASTA: 10 FUENTES O 5M DOCS | K145: Suscripción | L145: Und | M145: Producto | N145: Zonas (1,2,3) | O145: Remoto y/o sitio | P145: N/A | Q145: IF-SEARCH-10-5M | R145: Suscripción anual a la entrega de la licencia | S145: 41666666.67 | T145: 1 | U145: 0 | V145: COP
A146: CreangelSoftware IFINDITIF-SEARCH-10-10M | B146: IF-SEARCH-10-10MSoftware IFINDIT | D146: Creangel | E146: IF-SEARCH-10-10M | F146: Software IFINDIT | G146: Creangel | H146: COP | I146: N/A | J146: LICENCIA IFINDIT SEARCH HASTA: 10 FUENTES O 10M DOCS | K146: Suscripción | L146: Und | M146: Producto | N146: Zonas (1,2,3) | O146: Remoto y/o sitio | P146: N/A | Q146: IF-SEARCH-10-10M | R146: Suscripción anual a la entrega de la licencia | S146: 44166666.67 | T146: 1 | U146: 0 | V146: COP
A147: CreangelSoftware IFINDITIF-SEARCH-10-20M | B147: IF-SEARCH-10-20MSoftware IFINDIT | D147: Creangel | E147: IF-SEARCH-10-20M | F147: Software IFINDIT | G147: Creangel | H147: COP | I147: N/A | J147: LICENCIA IFINDIT SEARCH HASTA: 10 FUENTES O 20M DOCS | K147: Suscripción | L147: Und | M147: Producto | N147: Zonas (1,2,3) | O147: Remoto y/o sitio | P147: N/A | Q147: IF-SEARCH-10-20M | R147: Suscripción anual a la entrega de la licencia | S147: 46666666.67 | T147: 1 | U147: 0 | V147: COP
A148: CreangelSoftware IFINDITIF-SEARCH-10-50M | B148: IF-SEARCH-10-50MSoftware IFINDIT | D148: Creangel | E148: IF-SEARCH-10-50M | F148: Software IFINDIT | G148: Creangel | H148: COP | I148: N/A | J148: LICENCIA IFINDIT SEARCH HASTA: 10 FUENTES O 50M DOCS | K148: Suscripción | L148: Und | M148: Producto | N148: Zonas (1,2,3) | O148: Remoto y/o sitio | P148: N/A | Q148: IF-SEARCH-10-50M | R148: Suscripción anual a la entrega de la licencia | S148: 49166666.67 | T148: 1 | U148: 0 | V148: COP
A149: CreangelSoftware IFINDITIF-INFORMATION | B149: IF-INFORMATION Software IFINDIT | D149: Creangel | E149: IF-INFORMATION | F149: Software IFINDIT | G149: Creangel | H149: COP | I149: N/A | J149: LICENCIA IFINDIT SERVICIOS DE INFORMACION | K149: Suscripción | L149: Und | M149: Producto | N149: Zonas (1,2,3) | O149: Remoto y/o sitio | P149: N/A | Q149: IF-INFORMATION | R149: Suscripción anual a la entrega de la licencia | S149: 8000000 | T149: 1 | U149: 0 | V149: COP
A150: CreangelSoftware IFINDITIF-ANALYTICS-05-12 | B150: IF-ANALYTICS-05-12Software IFINDIT | D150: Creangel | E150: IF-ANALYTICS-05-12 | F150: Software IFINDIT | G150: Creangel | H150: COP | I150: N/A | J150: LICENCIA IFINDIT ANALYTICS HASTA: 5 FUENTES O 12 GB DATOS O 5 TABLEROS | K150: Suscripción | L150: Und | M150: Producto | N150: Zonas (1,2,3) | O150: Remoto y/o sitio | P150: N/A | Q150: IF-ANALYTICS-05-12 | R150: Suscripción anual a la entrega de la licencia | S150: 18750000 | T150: 1 | U150: 0 | V150: COP
A151: CreangelSoftware IFINDITIF-ANALYTICS-10-12 | B151: IF-ANALYTICS-10-12Software IFINDIT | D151: Creangel | E151: IF-ANALYTICS-10-12 | F151: Software IFINDIT | G151: Creangel | H151: COP | I151: N/A | J151: LICENCIA IFINDIT ANALYTICS HASTA: 10 FUENTES O 12 GB DATOS O 10 TABLEROS | K151: Suscripción | L151: Und | M151: Producto | N151: Zonas (1,2,3) | O151: Remoto y/o sitio | P151: N/A | Q151: IF-ANALYTICS-10-12 | R151: Suscripción anual a la entrega de la licencia | S151: 21500000 | T151: 1 | U151: 0 | V151: COP
A152: CreangelSoftware IFINDITIF-ANALYTICS-15-12 | B152: IF-ANALYTICS-15-12Software IFINDIT | D152: Creangel | E152: IF-ANALYTICS-15-12 | F152: Software IFINDIT | G152: Creangel | H152: COP | I152: N/A | J152: LICENCIA IFINDIT ANALYTICS HASTA: 15 FUENTES O 12 GB DATOS O 15 TABLEROS | K152: Suscripción | L152: Und | M152: Producto | N152: Zonas (1,2,3) | O152: Remoto y/o sitio | P152: N/A | Q152: IF-ANALYTICS-15-12 | R152: Suscripción anual a la entrega de la licencia | S152: 24333333.33 | T152: 1 | U152: 0 | V152: COP
A153: CreangelSoftware IFINDITIF-ANALYTICS-20-12 | B153: IF-ANALYTICS-20-12Software IFINDIT | D153: Creangel | E153: IF-ANALYTICS-20-12 | F153: Software IFINDIT | G153: Creangel | H153: COP | I153: N/A | J153: LICENCIA IFINDIT ANALYTICS HASTA: 20 FUENTES O 12 GB DATOS O 20 TABLEROS | K153: Suscripción | L153: Und | M153: Producto | N153: Zonas (1,2,3) | O153: Remoto y/o sitio | P153: N/A | Q153: IF-ANALYTICS-20-12 | R153: Suscripción anual a la entrega de la licencia | S153: 27250000 | T153: 1 | U153: 0 | V153: COP
A154: CreangelSoftware IFINDITIF-ANALYTICS-25-12 | B154: IF-ANALYTICS-25-12Software IFINDIT | D154: Creangel | E154: IF-ANALYTICS-25-12 | F154: Software IFINDIT | G154: Creangel | H154: COP | I154: N/A | J154: LICENCIA IFINDIT ANALYTICS HASTA: 25 FUENTES O 12 GB DATOS O 25 TABLEROS | K154: Suscripción | L154: Und | M154: Producto | N154: Zonas (1,2,3) | O154: Remoto y/o sitio | P154: N/A | Q154: IF-ANALYTICS-25-12 | R154: Suscripción anual a la entrega de la licencia | S154: 30083333.33 | T154: 1 | U154: 0 | V154: COP
A155: CreangelSoftware IFINDITIF-ANALYTICS-05-24 | B155: IF-ANALYTICS-05-24Software IFINDIT | D155: Creangel | E155: IF-ANALYTICS-05-24 | F155: Software IFINDIT | G155: Creangel | H155: COP | I155: N/A | J155: LICENCIA IFINDIT ANALYTICS HASTA: 5 FUENTES O 24 GB DATOS O 5 TABLEROS | K155: Suscripción | L155: Und | M155: Producto | N155: Zonas (1,2,3) | O155: Remoto y/o sitio | P155: N/A | Q155: IF-ANALYTICS-05-24 | R155: Suscripción anual a la entrega de la licencia | S155: 32750000 | T155: 1 | U155: 0 | V155: COP
A156: CreangelSoftware IFINDITIF-ANALYTICS-10-24 | B156: IF-ANALYTICS-10-24Software IFINDIT | D156: Creangel | E156: IF-ANALYTICS-10-24 | F156: Software IFINDIT | G156: Creangel | H156: COP | I156: N/A | J156: LICENCIA IFINDIT ANALYTICS HASTA: 10 FUENTES O 24 GB DATOS O 10 TABLEROS | K156: Suscripción | L156: Und | M156: Producto | N156: Zonas (1,2,3) | O156: Remoto y/o sitio | P156: N/A | Q156: IF-ANALYTICS-10-24 | R156: Suscripción anual a la entrega de la licencia | S156: 35250000 | T156: 1 | U156: 0 | V156: COP
A157: CreangelSoftware IFINDITIF-ANALYTICS-15-24 | B157: IF-ANALYTICS-15-24Software IFINDIT | D157: Creangel | E157: IF-ANALYTICS-15-24 | F157: Software IFINDIT | G157: Creangel | H157: COP | I157: N/A | J157: LICENCIA IFINDIT ANALYTICS HASTA: 10 FUENTES O 24 GB DATOS O 10 TABLEROS | K157: Suscripción | L157: Und | M157: Producto | N157: Zonas (1,2,3) | O157: Remoto y/o sitio | P157: N/A | Q157: IF-ANALYTICS-15-24 | R157: Suscripción anual a la entrega de la licencia | S157: 37500000 | T157: 1 | U157: 0 | V157: COP
A158: CreangelSoftware IFINDITIF-ANALYTICS-20-24 | B158: IF-ANALYTICS-20-24Software IFINDIT | D158: Creangel | E158: IF-ANALYTICS-20-24 | F158: Software IFINDIT | G158: Creangel | H158: COP | I158: N/A | J158: LICENCIA IFINDIT ANALYTICS HASTA: 10 FUENTES O 24 GB DATOS O 10 TABLEROS | K158: Suscripción | L158: Und | M158: Producto | N158: Zonas (1,2,3) | O158: Remoto y/o sitio | P158: N/A | Q158: IF-ANALYTICS-20-24 | R158: Suscripción anual a la entrega de la licencia | S158: 39333333.33 | T158: 1 | U158: 0 | V158: COP
A159: CreangelSoftware IFINDITIF-ANALYTICS-25-24 | B159: IF-ANALYTICS-25-24Software IFINDIT | D159: Creangel | E159: IF-ANALYTICS-25-24 | F159: Software IFINDIT | G159: Creangel | H159: COP | I159: N/A | J159: LICENCIA IFINDIT ANALYTICS HASTA: 15 FUENTES O 24 GB DATOS O 15 TABLEROS | K159: Suscripción | L159: Und | M159: Producto | N159: Zonas (1,2,3) | O159: Remoto y/o sitio | P159: N/A | Q159: IF-ANALYTICS-25-24 | R159: Suscripción anual a la entrega de la licencia | S159: 40666666.67 | T159: 1 | U159: 0 | V159: COP
A160: CreangelSoftware IFINDITIF-ANALYTICS-15-30 | B160: IF-ANALYTICS-15-30Software IFINDIT | D160: Creangel | E160: IF-ANALYTICS-15-30 | F160: Software IFINDIT | G160: Creangel | H160: COP | I160: N/A | J160: LICENCIA IFINDIT ANALYTICS HASTA: 15 FUENTES O 30 GB DATOS O 15 TABLEROS | K160: Suscripción | L160: Und | M160: Producto | N160: Zonas (1,2,3) | O160: Remoto y/o sitio | P160: N/A | Q160: IF-ANALYTICS-15-30 | R160: Suscripción anual a la entrega de la licencia | S160: 41583333.33 | T160: 1 | U160: 0 | V160: COP
A161: CreangelSoftware IFINDITIF-SEARCH-PL-5M | B161: IF-SEARCH-PL-5MSoftware IFINDIT | D161: Creangel | E161: IF-SEARCH-PL-5M | F161: Software IFINDIT | G161: Creangel | H161: COP | I161: N/A | J161: LICENCIA IFINDIT SEARCH HASTA: 2 FUENTES O 5M DOCS | K161: Licencia | L161: Und | M161: Producto | N161: Zonas (1,2,3) | O161: Remoto y/o sitio | P161: N/A | Q161: IF-SEARCH-PL-5M | R161: UNICO PAGO | S161: 820000000 | T161: 1 | U161: 0 | V161: COP
A162: CreangelSoftware IFINDITIF-SEARCH-PL-5M-MANT | B162: IF-SEARCH-PL-5M-MANTSoftware IFINDIT | D162: Creangel | E162: IF-SEARCH-PL-5M-MANT | F162: Software IFINDIT | G162: Creangel | H162: COP | I162: N/A | J162: MANTENIMIENTO LICENCIA IFINDIT SEARCH HASTA: 2 FUENTES O 5M DOCS | K162: Licencia | L162: Und | M162: Producto | N162: Zonas (1,2,3) | O162: Remoto y/o sitio | P162: N/A | Q162: IF-SEARCH-PL-5M-MANT | R162: Anual a la entrega de la licencia | S162: 287000000 | T162: 1 | U162: 1 | V162: COP
A163: CreangelSoftware IFINDITIF-CAP-01-01 | B163: IF-CAP-01-01Software IFINDIT | D163: Creangel | E163: IF-CAP-01-01 | F163: Software IFINDIT | G163: Creangel | H163: COP | I163: N/A | J163: Capacitación IFindIT para usuario final - hasta 10 Personas. | K163: Por sesión de capacitación de 4 horas para un grupo de hasta 10 personas. | L163: Und | M163: Servicio | N163: Zona 1 | O163: Sitio | P163: Profesional | Q163: IF-CAP-01-01 | R163: Mensual por servicios efectivamente prestados | S163: 2839600 | T163: 1 | U163: 1 | V163: COP
A164: CreangelSoftware IFINDITIF-CAP-01-02 | B164: IF-CAP-01-02Software IFINDIT | D164: Creangel | E164: IF-CAP-01-02 | F164: Software IFINDIT | G164: Creangel | H164: COP | I164: N/A | J164: Capacitación IFindIT para usuario final - hasta 10 Personas. | K164: Por sesión de capacitación de 4 horas para un grupo de hasta 10 personas. | L164: Und | M164: Servicio | N164: Zona 1 | O164: Remoto | P164: Profesional | Q164: IF-CAP-01-02 | R164: Mensual por servicios efectivamente prestados | S164: 2056240 | T164: 1 | U164: 1 | V164: COP
A165: CreangelSoftware IFINDITIF-CAP-01-03 | B165: IF-CAP-01-03Software IFINDIT | D165: Creangel | E165: IF-CAP-01-03 | F165: Software IFINDIT | G165: Creangel | H165: COP | I165: N/A | J165: Capacitación IFindIT para usuario final - hasta 10 Personas. | K165: Por sesión de capacitación de 4 horas para un grupo de hasta 10 personas. | L165: Und | M165: Servicio | N165: Zona 2 | O165: Sitio | P165: Profesional | Q165: IF-CAP-01-03 | R165: Mensual por servicios efectivamente prestados | S165: 5840000 | T165: 1 | U165: 1 | V165: COP
A166: CreangelSoftware IFINDITIF-CAP-01-04 | B166: IF-CAP-01-04Software IFINDIT | D166: Creangel | E166: IF-CAP-01-04 | F166: Software IFINDIT | G166: Creangel | H166: COP | I166: N/A | J166: Capacitación IFindIT para usuario final - hasta 10 Personas. | K166: Por sesión de capacitación de 4 horas para un grupo de hasta 10 personas. | L166: Und | M166: Servicio | N166: Zona 2 | O166: Remoto | P166: Profesional | Q166: IF-CAP-01-04 | R166: Mensual por servicios efectivamente prestados | S166: 2056240 | T166: 1 | U166: 1 | V166: COP
A167: CreangelSoftware IFINDITIF-CAP-01-05 | B167: IF-CAP-01-05Software IFINDIT | D167: Creangel | E167: IF-CAP-01-05 | F167: Software IFINDIT | G167: Creangel | H167: COP | I167: N/A | J167: Capacitación IFindIT para usuario final - hasta 10 Personas. | K167: Por sesión de capacitación de 4 horas para un grupo de hasta 10 personas. | L167: Und | M167: Servicio | N167: Zona 3 | O167: Sitio | P167: Profesional | Q167: IF-CAP-01-05 | R167: Mensual por servicios efectivamente prestados | S167: 5900000 | T167: 1 | U167: 1 | V167: COP
A168: CreangelSoftware IFINDITIF-CAP-01-06 | B168: IF-CAP-01-06Software IFINDIT | D168: Creangel | E168: IF-CAP-01-06 | F168: Software IFINDIT | G168: Creangel | H168: COP | I168: N/A | J168: Capacitación IFindIT para usuario final - hasta 10 Personas. | K168: Por sesión de capacitación de 4 horas para un grupo de hasta 10 personas. | L168: Und | M168: Servicio | N168: Zona 3 | O168: Remoto | P168: Profesional | Q168: IF-CAP-01-06 | R168: Mensual por servicios efectivamente prestados | S168: 2056240 | T168: 1 | U168: 1 | V168: COP
A169: CreangelSoftware IFINDITIF-CAP-02-01 | B169: IF-CAP-02-01Software IFINDIT | D169: Creangel | E169: IF-CAP-02-01 | F169: Software IFINDIT | G169: Creangel | H169: COP | I169: N/A | J169: Capacitación IFindIT para usuario final - hasta 20 Personas. | K169: Por sesión de capacitación de 4 horas para un grupo de hasta 20 personas. | L169: Und | M169: Servicio | N169: Zona 1 | O169: Sitio | P169: Profesional | Q169: IF-CAP-02-01 | R169: Mensual por servicios efectivamente prestados | S169: 5679200 | T169: 1 | U169: 1 | V169: COP
A170: CreangelSoftware IFINDITIF-CAP-02-02 | B170: IF-CAP-02-02Software IFINDIT | D170: Creangel | E170: IF-CAP-02-02 | F170: Software IFINDIT | G170: Creangel | H170: COP | I170: N/A | J170: Capacitación IFindIT para usuario final - hasta 20 Personas. | K170: Por sesión de capacitación de 4 horas para un grupo de hasta 20 personas. | L170: Und | M170: Servicio | N170: Zona 1 | O170: Remoto | P170: Profesional | Q170: IF-CAP-02-02 | R170: Mensual por servicios efectivamente prestados | S170: 4112480 | T170: 1 | U170: 1 | V170: COP
A171: CreangelSoftware IFINDITIF-CAP-02-03 | B171: IF-CAP-02-03Software IFINDIT | D171: Creangel | E171: IF-CAP-02-03 | F171: Software IFINDIT | G171: Creangel | H171: COP | I171: N/A | J171: Capacitación IFindIT para usuario final - hasta 20 Personas. | K171: Por sesión de capacitación de 4 horas para un grupo de hasta 20 personas. | L171: Und | M171: Servicio | N171: Zona 2 | O171: Sitio | P171: Profesional | Q171: IF-CAP-02-03 | R171: Mensual por servicios efectivamente prestados | S171: 11680000 | T171: 1 | U171: 1 | V171: COP
A172: CreangelSoftware IFINDITIF-CAP-02-04 | B172: IF-CAP-02-04Software IFINDIT | D172: Creangel | E172: IF-CAP-02-04 | F172: Software IFINDIT | G172: Creangel | H172: COP | I172: N/A | J172: Capacitación IFindIT para usuario final - hasta 20 Personas. | K172: Por sesión de capacitación de 4 horas para un grupo de hasta 20 personas. | L172: Und | M172: Servicio | N172: Zona 2 | O172: Remoto | P172: Profesional | Q172: IF-CAP-02-04 | R172: Mensual por servicios efectivamente prestados | S172: 4112480 | T172: 1 | U172: 1 | V172: COP
A173: CreangelSoftware IFINDITIF-CAP-02-05 | B173: IF-CAP-02-05Software IFINDIT | D173: Creangel | E173: IF-CAP-02-05 | F173: Software IFINDIT | G173: Creangel | H173: COP | I173: N/A | J173: Capacitación IFindIT para usuario final - hasta 20 Personas. | K173: Por sesión de capacitación de 4 horas para un grupo de hasta 20 personas. | L173: Und | M173: Servicio | N173: Zona 3 | O173: Sitio | P173: Profesional | Q173: IF-CAP-02-05 | R173: Mensual por servicios efectivamente prestados | S173: 11800000 | T173: 1 | U173: 1 | V173: COP
A174: CreangelSoftware IFINDITIF-CAP-02-06 | B174: IF-CAP-02-06Software IFINDIT | D174: Creangel | E174: IF-CAP-02-06 | F174: Software IFINDIT | G174: Creangel | H174: COP | I174: N/A | J174: Capacitación IFindIT para usuario final - hasta 20 Personas. | K174: Por sesión de capacitación de 4 horas para un grupo de hasta 20 personas. | L174: Und | M174: Servicio | N174: Zona 3 | O174: Remoto | P174: Profesional | Q174: IF-CAP-02-06 | R174: Mensual por servicios efectivamente prestados | S174: 4112480 | T174: 1 | U174: 1 | V174: COP
A175: CreangelSoftware IFINDITIF-CAP-03-01 | B175: IF-CAP-03-01Software IFINDIT | D175: Creangel | E175: IF-CAP-03-01 | F175: Software IFINDIT | G175: Creangel | H175: COP | I175: N/A | J175: Capacitación para usuario técnico o administrador - hasta 10 Personas. | K175: Por sesión de capacitación de 4 horas para un grupo de hasta 10 personas. | L175: Und | M175: Servicio | N175: Zona 1 | O175: Sitio | P175: Profesional | Q175: IF-CAP-03-01 | R175: Mensual por servicios efectivamente prestados | S175: 3449360 | T175: 1 | U175: 1 | V175: COP
A176: CreangelSoftware IFINDITIF-CAP-03-02 | B176: IF-CAP-03-02Software IFINDIT | D176: Creangel | E176: IF-CAP-03-02 | F176: Software IFINDIT | G176: Creangel | H176: COP | I176: N/A | J176: Capacitación para usuario técnico o administrador - hasta 10 Personas. | K176: Por sesión de capacitación de 4 horas para un grupo de hasta 10 personas. | L176: Und | M176: Servicio | N176: Zona 1 | O176: Remoto | P176: Profesional | Q176: IF-CAP-03-02 | R176: Mensual por servicios efectivamente prestados | S176: 2587440 | T176: 1 | U176: 1 | V176: COP
A177: CreangelSoftware IFINDITIF-CAP-03-03 | B177: IF-CAP-03-03Software IFINDIT | D177: Creangel | E177: IF-CAP-03-03 | F177: Software IFINDIT | G177: Creangel | H177: COP | I177: N/A | J177: Capacitación para usuario técnico o administrador - hasta 10 Personas. | K177: Por sesión de capacitación de 4 horas para un grupo de hasta 10 personas. | L177: Und | M177: Servicio | N177: Zona 2 | O177: Sitio | P177: Profesional | Q177: IF-CAP-03-03 | R177: Mensual por servicios efectivamente prestados | S177: 7900000 | T177: 1 | U177: 1 | V177: COP
A178: CreangelSoftware IFINDITIF-CAP-03-04 | B178: IF-CAP-03-04Software IFINDIT | D178: Creangel | E178: IF-CAP-03-04 | F178: Software IFINDIT | G178: Creangel | H178: COP | I178: N/A | J178: Capacitación para usuario técnico o administrador - hasta 10 Personas. | K178: Por sesión de capacitación de 4 horas para un grupo de hasta 10 personas. | L178: Und | M178: Servicio | N178: Zona 2 | O178: Remoto | P178: Profesional | Q178: IF-CAP-03-04 | R178: Mensual por servicios efectivamente prestados | S178: 2587440 | T178: 1 | U178: 1 | V178: COP
A179: CreangelSoftware IFINDITIF-CAP-03-05 | B179: IF-CAP-03-05Software IFINDIT | D179: Creangel | E179: IF-CAP-03-05 | F179: Software IFINDIT | G179: Creangel | H179: COP | I179: N/A | J179: Capacitación para usuario técnico o administrador - hasta 10 Personas. | K179: Por sesión de capacitación de 4 horas para un grupo de hasta 10 personas. | L179: Und | M179: Servicio | N179: Zona 3 | O179: Sitio | P179: Profesional | Q179: IF-CAP-03-05 | R179: Mensual por servicios efectivamente prestados | S179: 8000000 | T179: 1 | U179: 1 | V179: COP
A180: CreangelSoftware IFINDITIF-CAP-03-06 | B180: IF-CAP-03-06Software IFINDIT | D180: Creangel | E180: IF-CAP-03-06 | F180: Software IFINDIT | G180: Creangel | H180: COP | I180: N/A | J180: Capacitación para usuario técnico o administrador - hasta 10 Personas. | K180: Por sesión de capacitación de 4 horas para un grupo de hasta 10 personas. | L180: Und | M180: Servicio | N180: Zona 3 | O180: Remoto | P180: Profesional | Q180: IF-CAP-03-06 | R180: Mensual por servicios efectivamente prestados | S180: 2587440 | T180: 1 | U180: 1 | V180: COP
A181: =D181&F181&E181 -> CreangelSoftware IFINDITIF-CAP-04-01 | B181: =E181&F181 -> IF-CAP-04-01Software IFINDIT | D181: Creangel | E181: IF-CAP-04-01 | F181: Software IFINDIT | G181: =D181 -> Creangel | H181: COP | I181: N/A | J181: Capacitación para usuario técnico o administrador - hasta 20 Personas. | K181: Por sesión de capacitación de 4 horas para un grupo de hasta 20 personas. | L181: Und | M181: Servicio | N181: Zona 1 | O181: Sitio | P181: Profesional | Q181: =+E181 -> IF-CAP-04-01 | R181: Mensual por servicios efectivamente prestados | S181: 6898720 | T181: 1 | U181: 1 | V181: COP
A182: CreangelSoftware IFINDITIF-CAP-04-02 | B182: IF-CAP-04-02Software IFINDIT | D182: Creangel | E182: IF-CAP-04-02 | F182: Software IFINDIT | G182: Creangel | H182: COP | I182: N/A | J182: Capacitación para usuario técnico o administrador - hasta 20 Personas. | K182: Por sesión de capacitación de 4 horas para un grupo de hasta 20 personas. | L182: Und | M182: Servicio | N182: Zona 1 | O182: Remoto | P182: Profesional | Q182: IF-CAP-04-02 | R182: Mensual por servicios efectivamente prestados | S182: 5174880 | T182: 1 | U182: 1 | V182: COP
A183: CreangelSoftware IFINDITIF-CAP-04-03 | B183: IF-CAP-04-03Software IFINDIT | D183: Creangel | E183: IF-CAP-04-03 | F183: Software IFINDIT | G183: Creangel | H183: COP | I183: N/A | J183: Capacitación para usuario técnico o administrador - hasta 20 Personas. | K183: Por sesión de capacitación de 4 horas para un grupo de hasta 20 personas. | L183: Und | M183: Servicio | N183: Zona 2 | O183: Sitio | P183: Profesional | Q183: IF-CAP-04-03 | R183: Mensual por servicios efectivamente prestados | S183: 11680000 | T183: 1 | U183: 1 | V183: COP
A184: CreangelSoftware IFINDITIF-CAP-04-04 | B184: IF-CAP-04-04Software IFINDIT | D184: Creangel | E184: IF-CAP-04-04 | F184: Software IFINDIT | G184: Creangel | H184: COP | I184: N/A | J184: Capacitación para usuario técnico o administrador - hasta 20 Personas. | K184: Por sesión de capacitación de 4 horas para un grupo de hasta 20 personas. | L184: Und | M184: Servicio | N184: Zona 2 | O184: Remoto | P184: Profesional | Q184: IF-CAP-04-04 | R184: Mensual por servicios efectivamente prestados | S184: 5174880 | T184: 1 | U184: 1 | V184: COP
A185: CreangelSoftware IFINDITIF-CAP-04-05 | B185: IF-CAP-04-05Software IFINDIT | D185: Creangel | E185: IF-CAP-04-05 | F185: Software IFINDIT | G185: Creangel | H185: COP | I185: N/A | J185: Capacitación para usuario técnico o administrador - hasta 20 Personas. | K185: Por sesión de capacitación de 4 horas para un grupo de hasta 20 personas. | L185: Und | M185: Servicio | N185: Zona 3 | O185: Sitio | P185: Profesional | Q185: IF-CAP-04-05 | R185: Mensual por servicios efectivamente prestados | S185: 11800000 | T185: 1 | U185: 1 | V185: COP
A186: CreangelSoftware IFINDITIF-CAP-04-06 | B186: IF-CAP-04-06Software IFINDIT | D186: Creangel | E186: IF-CAP-04-06 | F186: Software IFINDIT | G186: Creangel | H186: COP | I186: N/A | J186: Capacitación para usuario técnico o administrador - hasta 20 Personas. | K186: Por sesión de capacitación de 4 horas para un grupo de hasta 20 personas. | L186: Und | M186: Servicio | N186: Zona 3 | O186: Remoto | P186: Profesional | Q186: IF-CAP-04-06 | R186: Mensual por servicios efectivamente prestados | S186: 5174880 | T186: 1 | U186: 1 | V186: COP
A187: CreangelSoftware IFINDITIT-SW-05-01 | B187: IT-SW-05-01Software IFINDIT | D187: Creangel | E187: IT-SW-05-01 | F187: Software IFINDIT | G187: Creangel | H187: COP | I187: N/A | J187: Configuración y parametrización de los Productos | K187: Hora | L187: Und | M187: Servicio | N187: Zona 1 | O187: Sitio | P187: Profesional | Q187: IT-SW-05-01 | R187: Mensual por servicios efectivamente prestados | S187: 480000 | T187: 1 | U187: 1 | V187: COP
A188: CreangelSoftware IFINDITIT-SW-05-02 | B188: IT-SW-05-02Software IFINDIT | D188: Creangel | E188: IT-SW-05-02 | F188: Software IFINDIT | G188: Creangel | H188: COP | I188: N/A | J188: Configuración y parametrización de los Productos | K188: Hora | L188: Und | M188: Servicio | N188: Zona 1 | O188: Remoto | P188: Profesional | Q188: IT-SW-05-02 | R188: Mensual por servicios efectivamente prestados | S188: 330000 | T188: 1 | U188: 1 | V188: COP
A189: CreangelSoftware IFINDITIT-SW-05-03 | B189: IT-SW-05-03Software IFINDIT | D189: Creangel | E189: IT-SW-05-03 | F189: Software IFINDIT | G189: Creangel | H189: COP | I189: N/A | J189: Configuración y parametrización de los Productos | K189: Hora | L189: Und | M189: Servicio | N189: Zona 2 | O189: Sitio | P189: Profesional | Q189: IT-SW-05-03 | R189: Mensual por servicios efectivamente prestados | S189: 510000 | T189: 1 | U189: 1 | V189: COP
A190: CreangelSoftware IFINDITIT-SW-05-04 | B190: IT-SW-05-04Software IFINDIT | D190: Creangel | E190: IT-SW-05-04 | F190: Software IFINDIT | G190: Creangel | H190: COP | I190: N/A | J190: Configuración y parametrización de los Productos | K190: Hora | L190: Und | M190: Servicio | N190: Zona 2 | O190: Remoto | P190: Profesional | Q190: IT-SW-05-04 | R190: Mensual por servicios efectivamente prestados | S190: 330000 | T190: 1 | U190: 1 | V190: COP
A191: CreangelSoftware IFINDITIT-SW-05-05 | B191: IT-SW-05-05Software IFINDIT | D191: Creangel | E191: IT-SW-05-05 | F191: Software IFINDIT | G191: Creangel | H191: COP | I191: N/A | J191: Configuración y parametrización de los Productos | K191: Hora | L191: Und | M191: Servicio | N191: Zona 3 | O191: Sitio | P191: Profesional | Q191: IT-SW-05-05 | R191: Mensual por servicios efectivamente prestados | S191: 541833 | T191: 1 | U191: 1 | V191: COP
A192: CreangelSoftware IFINDITIT-SW-05-06 | B192: IT-SW-05-06Software IFINDIT | D192: Creangel | E192: IT-SW-05-06 | F192: Software IFINDIT | G192: Creangel | H192: COP | I192: N/A | J192: Configuración y parametrización de los Productos | K192: Hora | L192: Und | M192: Servicio | N192: Zona 3 | O192: Remoto | P192: Profesional | Q192: IT-SW-05-06 | R192: Mensual por servicios efectivamente prestados | S192: 330000 | T192: 1 | U192: 1 | V192: COP
A193: CreangelSoftware IFINDITIT-SW-06-01 | B193: IT-SW-06-01Software IFINDIT | D193: Creangel | E193: IT-SW-06-01 | F193: Software IFINDIT | G193: Creangel | H193: COP | I193: N/A | J193: Gerente de cuenta (soporte) | K193: Mes | L193: Und | M193: Servicio | N193: Zona 1 | O193: Sitio | P193: Profesional | Q193: IT-SW-06-01 | R193: Mensual por servicios efectivamente prestados | S193: 16430000 | T193: 1 | U193: 1 | V193: COP
A194: CreangelSoftware IFINDITIT-SW-06-02 | B194: IT-SW-06-02Software IFINDIT | D194: Creangel | E194: IT-SW-06-02 | F194: Software IFINDIT | G194: Creangel | H194: COP | I194: N/A | J194: Gerente de cuenta (soporte) | K194: Mes | L194: Und | M194: Servicio | N194: Zona 2 | O194: Sitio | P194: Profesional | Q194: IT-SW-06-02 | R194: Mensual por servicios efectivamente prestados | S194: 17560000 | T194: 1 | U194: 1 | V194: COP
A195: CreangelSoftware IFINDITIT-SW-06-03 | B195: IT-SW-06-03Software IFINDIT | D195: Creangel | E195: IT-SW-06-03 | F195: Software IFINDIT | G195: Creangel | H195: COP | I195: N/A | J195: Gerente de cuenta (soporte) | K195: Mes | L195: Und | M195: Servicio | N195: Zona 3 | O195: Sitio | P195: Profesional | Q195: IT-SW-06-03 | R195: Mensual por servicios efectivamente prestados | S195: 17643000 | T195: 1 | U195: 1 | V195: COP
A196: CreangelSoftware IFINDITIT-SW-07-01 | B196: IT-SW-07-01Software IFINDIT | D196: Creangel | E196: IT-SW-07-01 | F196: Software IFINDIT | G196: Creangel | H196: COP | I196: N/A | J196: Instalación de Licencia o Suscripción Anual, o afínes | K196: Unidad | L196: Und | M196: Servicio | N196: Zona 1 | O196: Sitio | P196: Profesional | Q196: IT-SW-07-01 | R196: Mensual por servicios efectivamente prestados | S196: 2192400 | T196: 1 | U196: 1 | V196: COP
A197: CreangelSoftware IFINDITIT-SW-07-02 | B197: IT-SW-07-02Software IFINDIT | D197: Creangel | E197: IT-SW-07-02 | F197: Software IFINDIT | G197: Creangel | H197: COP | I197: N/A | J197: Instalación de Licencia o Suscripción Anual, o afínes | K197: Unidad | L197: Und | M197: Servicio | N197: Zona 1 | O197: Remoto | P197: Profesional | Q197: IT-SW-07-02 | R197: Mensual por servicios efectivamente prestados | S197: 2022100 | T197: 1 | U197: 1 | V197: COP
A198: CreangelSoftware IFINDITIT-SW-07-03 | B198: IT-SW-07-03Software IFINDIT | D198: Creangel | E198: IT-SW-07-03 | F198: Software IFINDIT | G198: Creangel | H198: COP | I198: N/A | J198: Instalación de Licencia o Suscripción Anual, o afínes | K198: Unidad | L198: Und | M198: Servicio | N198: Zona 2 | O198: Sitio | P198: Profesional | Q198: IT-SW-07-03 | R198: Mensual por servicios efectivamente prestados | S198: 2664000 | T198: 1 | U198: 1 | V198: COP
A199: CreangelSoftware IFINDITIT-SW-07-04 | B199: IT-SW-07-04Software IFINDIT | D199: Creangel | E199: IT-SW-07-04 | F199: Software IFINDIT | G199: Creangel | H199: COP | I199: N/A | J199: Instalación de Licencia o Suscripción Anual, o afínes | K199: Unidad | L199: Und | M199: Servicio | N199: Zona 2 | O199: Remoto | P199: Profesional | Q199: IT-SW-07-04 | R199: Mensual por servicios efectivamente prestados | S199: 2022100 | T199: 1 | U199: 1 | V199: COP
A200: CreangelSoftware IFINDITIT-SW-07-05 | B200: IT-SW-07-05Software IFINDIT | D200: Creangel | E200: IT-SW-07-05 | F200: Software IFINDIT | G200: Creangel | H200: COP | I200: N/A | J200: Instalación de Licencia o Suscripción Anual, o afínes | K200: Unidad | L200: Und | M200: Servicio | N200: Zona 3 | O200: Sitio | P200: Profesional | Q200: IT-SW-07-05 | R200: Mensual por servicios efectivamente prestados | S200: 2982000 | T200: 1 | U200: 1 | V200: COP
... 4308 more rows

Sheet ProXCat (hidden)
A3: Etiquetas de fila
A4: 1
A5: Controles Empresariales S.A.S.
A6: The Best Experience in Technology S.A
A7: UT Soft-IG
A8: UT Soluciones Microsoft 2017
A9: Total 1
A10: 2
A11: Controles Empresariales S.A.S.
A12: Dell Colombia INC
A13: The Best Experience in Technology S.A
A14: UT Soft-IG
A15: UT Soluciones Microsoft 2017
A16: Total 2
A17: 3
A18: Controles Empresariales S.A.S.
A19: UT Soft-IG
A20: UT Soluciones Microsoft 2017
A21: Total 3
A22: 4
A23: Controles Empresariales S.A.S.
A24: UT Soft-IG
A25: Total 4
A26: 5
A27: Controles Empresariales S.A.S.
A28: UT Soft-IG
A29: Vision Software S.A.S.
A30: Total 5
A31: 6
A32: Controles Empresariales S.A.S.
A33: The Best Experience in Technology S.A
A34: UT Soft-IG
A35: UT Soluciones Microsoft 2017
A36: Total 6
A37: 7
A38: Controles Empresariales S.A.S.
A39: The Best Experience in Technology S.A
A40: UT Soft-IG
A41: UT Soluciones Microsoft 2017
A42: Vision Software S.A.S.
A43: Total 7
A44: Total general

Sheet Cuadro Totales (hidden)
A1: Precio Unitario | B1: Precio máximo unitario (cláusula 8) | C1: Subtotal | D1: IVA | E1: Precio Total
D3: Valor Total | E3: =SUM(E2) -> 0
A8: Precio Unitario | B8: Precio máximo unitario (cláusula 8) | C8: Descuento adicional | D8: Precio con Descuento | E8: Subtotal | F8: IVA | G8: Vr IVA | H8: Precio Total
G10: Valor Total | H10: =SUM(H9) -> 0
A13: Servicios Azure
A14: Subtotal | B14: IVA | C14: Precio Total

Sheet Listas (hidden)
A1: Categoria | B1: Zona | C1: Marca | D1: ProductoInicial | E1: Producto | F1: Proveedores
A2: Software Pensemos SA | D2: AZD-SW-1 | F2: Analitica SAS
A3: Software IFINDIT | D3: AZD-SW-2
A4: Software Digital Ware SAS | D4: AZD-SW-3
A5: Software Servinformación | D5: AZD-SW-4
A6: Software Macro Proyectos SAS | D6: AZD-SW-5
A7: Software Analitica S.A.S | D7: AZD-SW-6
A8: Software Heinsohn | D8: AZD-SW-7
A9: Software Integrasoft | D9: AZD-SW-8
A10: Software Novasoft | D10: AZD-SW-9
A11: Control Online Servicio | D11: AZD-SW-10
A12: Control Online Producto | D12: AZD-SW-11
A13: Software Nexura | D13: AZD-SW-12
A14: Software CIE | D14: AZD-SW-13
A15: On prem Classic SAP Solutions | D15: AZD-SW-14
A16: OnpremS4&Native HANASolutions | D16: AZD-SW-15
A17: STEFANINI SYSMAN SAS_Administrativo | D17: AZD-SW-16
A18: STEFANINI SYSMAN SAS_Impuestos | D18: AZD-SW-17
A19: CloudS4 & Native HANA Solutions | D19: AZD-SW-18
A20: Cloud Classic SAP Solutions | D20: AZD-SW-19
A21: Software Xertica Colombia SAS | D21: AZD-SW-20
D22: AZD-SW-21
D23: AZD-SW-22
D24: AZD-SW-23
D25: AZD-SW-24
D26: SGP-SW-1
D27: SGP-SW-2
D28: SGP-SW-3
D29: SGP-SW-4
D30: SGP-SW-5
D31: SGP-SW-6
D32: AZD-SRV-1
D33: AZD-SRV-2
D34: AZD-SRV-3
D35: AZD-SRV-4
D36: AZD-SRV-5
D37: AZD-SRV-6
D38: AZD-SRV-7
D39: AZD-SRV-8
D40: AZD-SRV-9
D41: AZD-SRV-10
D42: AZD-SRV-11
D43: AZD-SRV-12
D44: AZD-SRV-13
D45: AZD-SRV-14
D46: AZD-SRV-15
D47: AZD-SRV-16
D48: AZD-SRV-17
D49: AZD-SRV-18
D50: AZD-SRV-19
D51: AZD-SRV-20
D52: AZD-SRV-21
D53: AZD-SRV-22
D54: AZD-SRV-23
D55: AZD-SRV-24
D56: AZD-SRV-25
D57: AZD-SRV-26
D58: AZD-SRV-27
D59: AZD-SRV-28
D60: AZD-SRV-29
D61: AZD-SRV-30
D62: AZD-SRV-31
D63: AZD-SRV-32
D64: AZD-SRV-33
D65: AZD-SRV-34
D66: AZD-SRV-35
D67: AZD-SRV-36
D68: AZD-SRV-37
D69: AZD-SRV-38
D70: AZD-SRV-39
D71: AZD-SRV-40
D72: AZD-SRV-41
D73: AZD-SRV-42
D74: AZD-SRV-43
D75: AZD-SRV-44
D76: AZD-SRV-45
D77: AZD-SRV-46
D78: AZD-SRV-47
D79: AZD-SRV-48
D80: AZD-SRV-49
D81: AZD-SRV-50
D82: AZD-SRV-51
D83: AZD-SRV-52
D84: AZD-SRV-53
D85: AZD-SRV-54
D86: AZD-SRV-55
D87: AZD-SRV-56
D88: AZD-SRV-57
D89: SGP-SRV-1
D90: SGP-SRV-2
D91: SGP-SRV-3
D92: SGP-SRV-4
D93: SGP-SRV-5
D94: SGP-SRV-6
D95: SGP-SRV-7
D96: SGP-SRV-8
D97: SGP-SRV-9
D98: SGP-SRV-10
D99: SGP-SRV-11
D100: SGP-SRV-12
D101: SGP-SRV-13
D102: SGP-SRV-14
D103: SGP-SRV-15
D104: SGP-SRV-16
D105: SGP-SRV-17
D106: SGP-SRV-18
D107: SGP-SRV-19
D108: SGP-SRV-20
D109: SGP-SRV-21
D110: SGP-SRV-22
D111: SGP-SRV-23
D112: SGP-SRV-24
D113: SGP-SRV-25
D114: SGP-SRV-26
D115: SGP-SRV-27
D116: SGP-SRV-28
D117: SGP-SRV-29
D118: SGP-SRV-30
D119: SGP-SRV-31
D120: SGP-SRV-32
D121: SGP-SRV-33
D122: SGP-SRV-34
D123: SGP-SRV-35
D124: SGP-SRV-36
D125: SGP-SRV-37
D126: SGP-SRV-38
D127: SGP-SRV-39
D128: SGP-SRV-40
D129: SGP-SRV-41
D130: SGP-SRV-42
D131: SGP-SRV-43
D132: SGP-SRV-44
D133: SGP-SRV-45
D134: SGP-SRV-46
D135: SGP-SRV-47
D136: SGP-SRV-48
D137: SGP-SRV-49
D138: SGP-SRV-50
D139: SGP-SRV-51
D140: SGP-SRV-52
D141: SGP-SRV-53
D142: SGP-SRV-54
D143: SGP-SRV-55
D144: SGP-SRV-56
D145: SGP-SRV-57
D146: AZD-SRV-58
D147: AZD-SRV-59
D148: AZD-SRV-60
D149: SGP-SRV-58
D150: SGP-SRV-59
D151: SGP-SRV-60

Sheet minimo (hidden)
C1: categoria | D1: (Todas)
C3: Etiquetas de fila | D3: Suma de total
C4: Analitica SAS | D4: 159853216.9
C5: Total general | D5: 159853216.9

Sheet Hoja1 (hidden)

Sheet temp (hidden)
A1: LLAVE | B1: TEMP1 | C1: TEMP2 | D1: PROVEEDOR | E1: Código matriz Colombia Compra Eficiente | F1: categoria | G1: PROVEEDOR2 | H1: Moneda | I1: Parametrización de los Servicios | J1: Nombre Producto | K1: Unidad de Medida | L1: Unidad TVEC | M1: Tipo | N1: Zona | O1: Asistencia | P1: Perfil | Q1: Número de parte | R1: Forma de Pago | S1: Precio | T1: Activo | U1: IVA | V1: cant | W1: valor base | X1: valor con gravamenes | Y1: total
A2: Analitica SASSoftware Analitica S.A.SSGP-SW-1 | B2: SGP-SW-1Software Analitica S.A.S | D2: Analitica SAS | E2: SGP-SW-1 | F2: Software Analitica S.A.S | G2: Analitica SAS | H2: COP | I2: N/A | J2: SGP Licencia por usuario: BPMS Ilimitados Procedimientos (Incluye soporte por el primer año) - Mínimo 20 usuarios | K2: Usuario | L2: Soft | M2: Servicio | N2: Zonas (1,2,3) | O2: Remoto | P2: N/A | Q2: SGP-SW-1 | R2: Único Pago | S2: 1500000 | T2: 1 | U2: 1 | V2: =SUMIF(ResumenCotizacion!$C:$C,E2,ResumenCotizacion!$P:$P) -> 20 | W2: =S2 -> 1500000 | X2: =ROUND(W2/(1-VLOOKUP("Total porcentaje:",ResumenCotizacion!$F:$H,3,0)),2) -> 1556016.6 | Y2: =V2*X2 -> 31120332
A3: Analitica SASSoftware Analitica S.A.SSGP-SW-2 | B3: SGP-SW-2Software Analitica S.A.S | D3: Analitica SAS | E3: SGP-SW-2 | F3: Software Analitica S.A.S | G3: Analitica SAS | H3: COP | I3: N/A | J3: SGP Soporte anual por usuario: BPMS (Año Adicional) | K3: Usuario | L3: Sop | M3: Servicio | N3: Zonas (1,2,3) | O3: Remoto | P3: N/A | Q3: SGP-SW-2 | R3: Anual | S3: 300000 | T3: 1 | U3: 1 | V3: =SUMIF(ResumenCotizacion!$C:$C,E3,ResumenCotizacion!$P:$P) -> 20 | W3: =S3 -> 300000 | X3: =ROUND(W3/(1-VLOOKUP("Total porcentaje:",ResumenCotizacion!$F:$H,3,0)),2) -> 311203.32 | Y3: =V3*X3 -> 6224066.4
A4: Analitica SASSoftware Analitica S.A.SSGP-SRV-13 | B4: SGP-SRV-13Software Analitica S.A.S | D4: Analitica SAS | E4: SGP-SRV-13 | F4: Software Analitica S.A.S | G4: Analitica SAS | H4: COP | I4: N/A | J4: Capacitación para usuario técnico o administrador - hasta 10 Personas SGP (BPMS) | K4: Por sesión de capacitación de 4 horas para un grupo de hasta 10 personas. | L4: Serv | M4: Servicio | N4: Zona 1 | O4: Remoto | P4: Capacitador | Q4: SGP-SRV-13 | R4: Mensual por servicios efectivamente prestados | S4: 1376550 | T4: 1 | U4: 1 | V4: =SUMIF(ResumenCotizacion!$C:$C,E4,ResumenCotizacion!$P:$P) -> 10 | W4: 1376550 | X4: =ROUND(W4/(1-VLOOKUP("Total porcentaje:",ResumenCotizacion!$F:$H,3,0)),2) -> 1427956.43 | Y4: 14279564.3
A5: Analitica SASSoftware Analitica S.A.SSGP-SRV-25 | B5: SGP-SRV-25Software Analitica S.A.S | D5: Analitica SAS | E5: SGP-SRV-25 | F5: Software Analitica S.A.S | G5: Analitica SAS | H5: COP | I5: N/A | J5: Configuración y parametrización de los Productos - SGP (BPMS) | K5: Hora | L5: Serv | M5: Servicio | N5: Zona 1 | O5: Remoto | P5: Profesional | Q5: SGP-SRV-25 | R5: Mensual por servicios efectivamente prestados | S5: 94190 | T5: 1 | U5: 1 | V5: =SUMIF(ResumenCotizacion!$C:$C,E5,ResumenCotizacion!$P:$P) -> 1000 | W5: 94190 | X5: =ROUND(W5/(1-VLOOKUP("Total porcentaje:",ResumenCotizacion!$F:$H,3,0)),2) -> 97707.47 | Y5: 97707470
A6: Analitica SASSoftware Analitica S.A.SSGP-SRV-31 | B6: SGP-SRV-31Software Analitica S.A.S | D6: Analitica SAS | E6: SGP-SRV-31 | F6: Software Analitica S.A.S | G6: Analitica SAS | H6: COP | I6: N/A | J6: Instalación de Licencia o Suscripción Anual, o afínes - SGP (BPMS) | K6: Unidad | L6: Serv | M6: Servicio | N6: Zona 1 | O6: Remoto | P6: Técnico/Tecnólogo ó Profesional | Q6: SGP-SRV-31 | R6: Mensual por servicios efectivamente prestados | S6: 10143000 | T6: 1 | U6: 1 | V6: =SUMIF(ResumenCotizacion!$C:$C,E6,ResumenCotizacion!$P:$P) -> 1 | W6: 10143000 | X6: =ROUND(W6/(1-VLOOKUP("Total porcentaje:",ResumenCotizacion!$F:$H,3,0)),2) -> 10521784.23 | Y6: 10521784.23

Sheet tempListas (hidden)
A1: categoria
A2: Software Pensemos SA
A3: Software IFINDIT
A4: Software Digital Ware SAS
A5: Software Servinformación
A6: Software Macro Proyectos SAS
A7: Software Analitica S.A.S
A8: Software Heinsohn
A9: Software Integrasoft
A10: Software Novasoft
A11: Control Online Servicio
A12: Control Online Producto
A13: Software Nexura
A14: Software CIE
A15: On prem Classic SAP Solutions
A16: OnpremS4&Native HANASolutions
A17: STEFANINI SYSMAN SAS_Administrativo
A18: STEFANINI SYSMAN SAS_Impuestos
A19: CloudS4 & Native HANA Solutions
A20: Cloud Classic SAP Solutions
A21: Software Xertica Colombia SAS
